Workbook

Sheet Инф-я
A2: По вопросам работы электронного формата расчета НВВ обращаться в ООО "ТОРИ-АУДИТ"
A3: тел. 8-4922-42-32-92
A6: Расчет НВВ на услуги по передаче электрической энергии, устанавливаемых с применением метода долгосрочной индексации необходимой валовой выручки
B9: Информация об организации
A11: № п/п | B11: Требуемая информация | C11: Данные об организации
A12: 1. | B12: Наименование организации в соответствии с уставом: | C12: Муниципальное унитарное предприятие "Александровэлектосеть" Александровского района
B13: сокращенное название организации | C13: МУП "АЭС"
B14: полное наименование организации | C14: МУП «Александровэлектросеть»
A15: 2. | B15: Муниципальное образование | C15: Александровский район город Александров
A16: 3. | B16: Адрес организации: | C16: 601650 Владимирская обл. г. Александров Красный переулок д. 8
B17: юридический адрес
B18: фактический адрес (месторасположение)
A19: 4. | B19: ИНН | C19: 3301025780
A20: 5. | B20: КПП | C20: 330101001
A21: 6. | B21: ФИО руководителя организации | C21: Ю.В. Николаев
B22: контактный телефон/факс | C22: 8(49244) 2-34-30
B23: е-mail | C23: mupaes@mail,ru
A24: 7. | B24: ФИО начальника ПЭО
B25: контактный телефон/факс
A26: 8. | B26: ФИО ответственного за электрохозяйство | C26: М.Н.Долгов
B27: контактный телефон/факс | C27: 8 (49244) 2-41-48
A28: 9. | B28: ФИО главного бухгалтера | C28: М.В.Калуга
B29: контактный телефон/факс | C29: 8(49244) 2-35-18
A30: 10. | B30: ФИО непосредственного исполнителя | C30: Н.В.Кузнецова
B31: контактный телефон/факс | C31: 8(49244) 2-35-18
B32: е-mail | C32: nata-ages@rambler.ru
A33: 11. | B33: Банковские реквизиты:
B34: расчетный счет | C34: 40702810101001000699
B35: банк | C35: ПАО «О.К. БАНК» г. Ярославль
B36: корреспондентский счет | C36: 30101810278880000740
B37: БИК | C37: 047888740
A39: Предложение о размере цен (тарифов), долгосрочных параметров регулирования (при применении метода доходности инвестированного капитала или метода долгосрочной необходимой валовой выручки), подлежит раскрытию на официальных сайтах регулируемых организаций или на ином официальном сайте в сети Интернет, определяемом Правительством Российской Федерации, и (или) в периодическом печатном издании, в котором публикуются нормативные правовые акты органа исполнительной власти в области регулирования тарифов, - за 10 дней до представления в регулирующий орган предложения об установлении цен (тарифов) и (или) их предельных уровней, содержащего такую информацию. ( п. 9 Постановления Правительства РФ от 21.01.2004 г. № 24 "Об утверждении стандартов раскрытия информации субъектами оптового и розничных рынков электрической энергии": )
A40: В случае если регулируемая организация не опубликовала предложение о размере цен (тарифов) и долгосрочных параметров регулирования , подлежащих регулированию или указанное опубликованное предложение не соответствует предложению, представляемому в орган регулирования Регулирующий орган отказывает в открытии дела об установлении цены (тарифа).
A41: Организации, осуществляющие регулируемую деятельность, вправе представить в регулирующий орган дополнительные материалы к предложениям об установлении цен (тарифов) по своей инициативе не позднее 30 рабочих дней до даты наступления очередного периода регулирования. Уточненные предложения подлежат опубликованию в порядке, установленном стандартами раскрытия информации субъектами оптового и розничных рынков электрической энергии, утвержденными постановлением Правительства Российской Федерации от 21 января 2004 г. N 24 "Об утверждении стандартов раскрытия информации субъектами оптового и розничных рынков электрической энергии". (Пункт 12 Правил государственного регулирования (пересмотра, применения) цен (тарифов) в электроэнергетике Постановления Правительства РФ от 29 декабря 2011 г. N 1178 "О ценообразовании в области регулируемых цен (тарифов) в электроэнергетике" (с изменениями и дополнениями)
A46: Организации, осуществляющие регулируемую деятельность, вправе представить в регулирующий орган дополнительные материалы к предложениям об установлении цен (тарифов) по своей инициативе не позднее 30 рабочих дней до даты наступления очередного периода регулирования. Уточненные предложения подлежат опубликованию в порядке, установленном стандартами раскрытия информации субъектами оптового и розничных рынков электрической энергии, утвержденными постановлением Правительства Российской Федерации от 21 января 2004 г. N 24 "Об утверждении стандартов раскрытия информации субъектами оптового и розничных рынков электрической энергии".
A99: 1 | B99: ООО «Радугагорэнерго»
A100: 2 | B100: МУП «Горэлектросеть» г. Муром
A101: 3 | B101: МУП «Александровэлектросеть»
A102: 4 | B102: ООО «СтройГарант»
A103: 5 | B103: ООО «Костеревские городские электрические сети»
A104: 6 | B104: ООО «Ковровэлектросетьремонт»
A105: 7 | B105: ООО «ПромРЭС»
A106: 8 | B106: ООО «ПромЭнерго» г. Судогда
A107: 9 | B107: ОАО «Энергетик» г. Карабаново
A108: 10 | B108: ООО «Электросистемы»
A109: 11 | B109: ООО «Ярцево-Энерго»
A110: 12 | B110: ПАО «Ставровский завод АТО»
A111: 13 | B111: ООО «ЭнергоАктив»

Sheet Баланс энергии
A1: Заполняется в тыс. кВт.ч. ! | AF1: тыс. кВт.ч.
A3: Баланс электрической энергии по сетям ВН, СН1, СН2, и НН | H3: ='Инф-я'!C14 -> МУП «Александровэлектросеть»
A5: № п.п. | B5: Показатели | C5: Принято регулирующим органом на 2019 год | H5: Факт за 2019 год | M5: Принято регулирующим органом на 2020 год | R5: По данным организации на 2021 год | W5: По данным организации на 1 полугодие 2021 года | AB5: По данным организации на 2 полугодие 2021 года | AG5: По данным экспертов на 2021 год | AL5: По данным экспертов на 1 полугодие 2021 года | AQ5: По данным экспертов на 2 полугодие 2021 года
C6: Всего | D6: ВН | E6: СН1 | F6: СН2 | G6: НН | H6: Всего | I6: ВН | J6: СН1 | K6: СН2 | L6: НН | M6: Всего | N6: ВН | O6: СН1 | P6: СН2 | Q6: НН | R6: Всего | S6: ВН | T6: СН1 | U6: СН2 | V6: НН | W6: Всего | X6: ВН | Y6: СН1 | Z6: СН2 | AA6: НН | AB6: Всего | AC6: ВН | AD6: СН1 | AE6: СН2 | AF6: НН | AG6: Всего | AH6: ВН | AI6: СН1 | AJ6: СН2 | AK6: НН | AL6: Всего | AM6: ВН | AN6: СН1 | AO6: СН2 | AP6: НН | AQ6: Всего | AR6: ВН | AS6: СН1 | AT6: СН2 | AU6: НН
A7: 1 | B7: 2 | C7: 3 | D7: 4 | E7: 5 | F7: 6 | G7: 7 | H7: 18 | I7: 19 | J7: 20 | K7: 21 | L7: 22 | M7: 33 | N7: 34 | O7: 35 | P7: 36 | Q7: 37 | R7: 48 | S7: 49 | T7: 50 | U7: 51 | V7: 52 | W7: 53 | X7: 54 | Y7: 55 | Z7: 56 | AA7: 57 | AB7: 58 | AC7: 59 | AD7: 60 | AE7: 61 | AF7: 62 | AG7: 63 | AH7: 64 | AI7: 65 | AJ7: 66 | AK7: 67 | AL7: 53 | AM7: 54 | AN7: 55 | AO7: 56 | AP7: 57 | AQ7: 58 | AR7: 59 | AS7: 60 | AT7: 61 | AU7: 62
A8: 1. | B8: Поступление эл.энергии в сеть , ВСЕГО | C8: =C18+C20+C21 -> 145371.97 | D8: =D14+D15+D16+D17 -> 144486.9 | E8: =E9+E14+E15+E16+E17 -> 885.07 | F8: =F9+F14+F15+F16+F17 -> 145371.97 | G8: =G9+G14+G15+G16+G17 -> 76643.79967 | H8: =H18+H20+H21 -> 138485.902 | I8: =I14+I15+I16+I17 -> 137664.065 | J8: =J9+J14+J15+J16+J17 -> 821.837 | K8: =K9+K14+K15+K16+K17 -> 138485.902 | L8: =L9+L14+L15+L16+L17 -> 61527.38105 | M8: =M18+M20+M21 -> 141286.4154 | N8: =N14+N15+N16+N17 -> 140446.8133 | O8: =O9+O14+O15+O16+O17 -> 839.6021404 | P8: =P9+P14+P15+P16+P17 -> 141286.4154 | Q8: =Q9+Q14+Q15+Q16+Q17 -> 62461.89491 | R8: =R18+R20+R21 -> 138485.902 | S8: =S14+S15+S16+S17 -> 137664.07 | T8: =T9+T14+T15+T16+T17 -> 821.832 | U8: =U9+U14+U15+U16+U17 -> 138485.902 | V8: =V9+V14+V15+V16+V17 -> 61941.01285 | W8: =W18+W20+W21 -> 69863.3 | X8: =X14+X15+X16+X17 -> 69370.2 | Y8: =Y9+Y14+Y15+Y16+Y17 -> 0 | Z8: =Z9+Z14+Z15+Z16+Z17 -> 69863.3 | AA8: =AA9+AA14+AA15+AA16+AA17 -> 30770.4956 | AB8: =AB18+AB20+AB21 -> 69444.43 | AC8: =AC14+AC15+AC16+AC17 -> 69115.7 | AD8: =AD9+AD14+AD15+AD16+AD17 -> 0 | AE8: =AE9+AE14+AE15+AE16+AE17 -> 69444.43 | AF8: =AF9+AF14+AF15+AF16+AF17 -> 31133.41219 | AG8: =AG18+AG20+AG21 -> 138485.138 | AH8: =AH14+AH15+AH16+AH17 -> 137663.3054 | AI8: =AI9+AI14+AI15+AI16+AI17 -> 821.8325816 | AJ8: =AJ9+AJ14+AJ15+AJ16+AJ17 -> 138485.138 | AK8: =AK9+AK14+AK15+AK16+AK17 -> 61082.70897 | AL8: =AL18+AL20+AL21 -> 69369.61773 | AM8: =AM14+AM15+AM16+AM17 -> 68957.94747 | AN8: =AN9+AN14+AN15+AN16+AN17 -> 411.6702547 | AO8: =AO9+AO14+AO15+AO16+AO17 -> 69369.61773 | AP8: =AP9+AP14+AP15+AP16+AP17 -> 30403.43646 | AQ8: =AQ18+AQ20+AQ21 -> 69115.52026 | AR8: =AR14+AR15+AR16+AR17 -> 68705.35793 | AS8: =AS9+AS14+AS15+AS16+AS17 -> 410.1623269 | AT8: =AT9+AT14+AT15+AT16+AT17 -> 69115.52026 | AU8: =AU9+AU14+AU15+AU16+AU17 -> 30679.27251
A9: 1.1. | B9: из смежной сети, всего | C9: х | D9: х | E9: =E11 -> 0 | F9: =F11+F12 -> 145371.97 | G9: =G11+G12+G13 -> 76643.79967 | H9: х | I9: х | J9: =J11 -> 0 | K9: =K11+K12 -> 138485.902 | L9: =L11+L12+L13 -> 61527.38105 | M9: х | N9: х | O9: =O11 -> 0 | P9: =P11+P12 -> 141286.4154 | Q9: =Q11+Q12+Q13 -> 62461.89491 | R9: х | S9: х | T9: =T11 -> 0 | U9: =U11+U12 -> 138485.902 | V9: =V11+V12+V13 -> 61941.01285 | W9: х | X9: х | Y9: =Y11 -> 0 | Z9: =Z11+Z12 -> 69370.2 | AA9: =AA11+AA12+AA13 -> 30770.4956 | AB9: х | AC9: х | AD9: =AD11 -> 0 | AE9: =AE11+AE12 -> 69115.7 | AF9: =AF11+AF12+AF13 -> 31133.41219 | AG9: х | AH9: х | AI9: =AI11 -> 0 | AJ9: =AJ11+AJ12 -> 138485.138 | AK9: =AK11+AK12+AK13 -> 61082.70897 | AL9: х | AM9: х | AN9: =AN11 -> 0 | AO9: =AO11+AO12 -> 69369.61773 | AP9: =AP11+AP12+AP13 -> 30403.43646 | AQ9: х | AR9: х | AS9: =AS11 -> 0 | AT9: =AT11+AT12 -> 69115.52026 | AU9: =AU11+AU12+AU13 -> 30679.27251
B10: в том числе из сети | C10: х | D10: х | E10: х | F10: х | G10: х | H10: х | I10: х | J10: х | K10: х | L10: х | M10: х | N10: х | O10: х | P10: х | Q10: х | R10: х | S10: х | T10: х | U10: х | V10: х | W10: х | X10: х | Y10: х | Z10: х | AA10: х | AB10: х | AC10: х | AD10: х | AE10: х | AF10: х | AG10: х | AH10: х | AI10: х | AJ10: х | AK10: х | AL10: х | AM10: х | AN10: х | AO10: х | AP10: х | AQ10: х | AR10: х | AS10: х | AT10: х | AU10: х
A11: 1.1.1. | B11: ВН | C11: х | D11: х | F11: =D8-D18-D20-D21-E11-G11 -> 144486.9 | H11: х | I11: х | K11: =I8-I18-I20-I21-J11-L11 -> 137664.065 | M11: х | N11: х | P11: =N8-N18-N20-N21-O11-Q11 -> 140446.8133 | R11: х | S11: х | U11: =S8-S18-S20-S21-T11-V11 -> 137664.07 | W11: х | X11: х | Z11: =X8-X18-X20-X21-Y11-AA11 -> 69370.2 | AB11: х | AC11: х | AE11: =AC8-AC18-AC20-AC21-AD11-AF11 -> 69115.7 | AG11: х | AH11: х | AJ11: =AH8-AH18-AH20-AH21-AI11-AK11 -> 137663.3054 | AL11: х | AM11: х | AO11: =AM8-AM18-AM20-AM21-AN11-AP11 -> 68957.94747 | AQ11: х | AR11: х | AT11: =AR8-AR18-AR20-AR21-AS11-AU11 -> 68705.35793
A12: 1.1.2. | B12: СН1 | C12: х | D12: х | E12: х | F12: =E8-E18-E20-E21-G12 -> 885.07 | H12: х | I12: х | J12: х | K12: =J8-J18-J20-J21-L12 -> 821.837 | M12: х | N12: х | O12: х | P12: =O8-O18-O20-O21-Q12 -> 839.6021404 | R12: х | S12: х | T12: х | U12: =T8-T18-T20-T21-V12 -> 821.832 | W12: х | X12: х | Y12: х | Z12: =Y8-Y18-Y20-Y21-AA12 -> 0 | AB12: х | AC12: х | AD12: х | AE12: =AD8-AD18-AD20-AD21-AF12 -> 0 | AG12: х | AH12: х | AI12: х | AJ12: =AI8-AI18-AI20-AI21-AK12 -> 821.8325816 | AL12: х | AM12: х | AN12: х | AO12: =AN8-AN18-AN20-AN21-AP12 -> 411.6702547 | AQ12: х | AR12: х | AS12: х | AT12: =AS8-AS18-AS20-AS21-AU12 -> 410.1623269
A13: 1.1.3. | B13: СН2 | C13: х | D13: х | E13: х | F13: х | G13: =F8-F18-F20-F21 -> 76643.79967 | H13: х | I13: х | J13: х | K13: х | L13: =K8-K18-K20-K21 -> 61527.38105 | M13: х | N13: х | O13: х | P13: х | Q13: =P8-P18-P20-P21 -> 62461.89491 | R13: х | S13: х | T13: х | U13: х | V13: =U8-U18-U20-U21 -> 61941.01285 | W13: х | X13: х | Y13: х | Z13: х | AA13: =Z8-Z18-Z20-Z21 -> 30770.4956 | AB13: х | AC13: х | AD13: х | AE13: х | AF13: =AE8-AE18-AE20-AE21 -> 31133.41219 | AG13: х | AH13: х | AI13: х | AJ13: х | AK13: =AJ8-AJ18-AJ20-AJ21 -> 61082.70897 | AL13: х | AM13: х | AN13: х | AO13: х | AP13: =AO8-AO18-AO20-AO21 -> 30403.43646 | AQ13: х | AR13: х | AS13: х | AT13: х | AU13: =AT8-AT18-AT20-AT21 -> 30679.27251
A14: 1.2. | B14: от электростанций | C14: =SUM(D14:G14) -> 0 | H14: =SUM(I14:L14) -> 0 | M14: =SUM(N14:Q14) -> 0 | R14: =SUM(S14:V14) -> 0 | W14: =SUM(X14:AA14) -> 0 | AB14: =SUM(AC14:AF14) -> 0 | AG14: =SUM(AH14:AK14) -> 0 | AL14: =SUM(AM14:AP14) -> 0 | AQ14: =SUM(AR14:AU14) -> 0 | AR14: 0 | AS14: 0 | AT14: 0 | AU14: 0
A15: 1.3. | B15: от ОАО "ФСК ЕЭС" | C15: =SUM(D15:G15) -> 144486.9 | D15: 144486.9 | H15: =SUM(I15:L15) -> 137664.065 | I15: 137664.065 | M15: =SUM(N15:Q15) -> 140446.8133 | N15: 140446.8133 | O15: 0 | R15: =SUM(S15:V15) -> 137664.07 | S15: 137664.07 | W15: =SUM(X15:AA15) -> 69370.2 | X15: 69370.2 | AB15: =SUM(AC15:AF15) -> 69115.7 | AC15: 69115.7 | AG15: =SUM(AH15:AK15) -> 137663.3054 | AH15: 137663.3054 | AL15: =SUM(AM15:AP15) -> 68957.94747 | AM15: 68957.94747 | AQ15: =SUM(AR15:AU15) -> 68705.35793 | AR15: 68705.35793 | AS15: 0 | AT15: 0 | AU15: 0 | AX15: Минимальное значение из норматива потерь и фактичских потерь электрической энергии (n)
A16: 1.4. | B16: от филиала "Владимирэнерго" ОАО "МРСК Центра и Приволжья" | C16: =SUM(D16:G16) -> 885.07 | E16: 885.07 | H16: =SUM(I16:L16) -> 821.837 | J16: 821.837 | M16: =SUM(N16:Q16) -> 839.6021404 | N16: 0 | O16: 839.6021404 | R16: =SUM(S16:V16) -> 821.832 | T16: 821.832 | W16: =SUM(X16:AA16) -> 493.1 | Z16: 493.1 | AB16: =SUM(AC16:AF16) -> 328.73 | AE16: 328.73 | AG16: =SUM(AH16:AK16) -> 821.8325816 | AH16: 0 | AI16: 821.8325816 | AJ16: 0 | AK16: 0 | AL16: =SUM(AM16:AP16) -> 411.6702547 | AM16: 0 | AN16: 411.6702547 | AO16: 0 | AP16: 0 | AQ16: =SUM(AR16:AU16) -> 410.1623269 | AR16: 0 | AS16: 410.1623269 | AT16: 0 | AU16: 0 | AX16: ВН | AY16: СН1 | AZ16: СН2 | BA16: НН
A17: 1.5. | B17: от других сетевых организаций | C17: =SUM(D17:G17) -> 0 | H17: =SUM(I17:L17) -> 0 | M17: =SUM(N17:Q17) -> 0 | R17: =SUM(S17:V17) -> 0 | W17: =SUM(X17:AA17) -> 0 | AB17: =SUM(AC17:AF17) -> 0 | AG17: =SUM(AH17:AK17) -> 0 | AH17: 0 | AI17: 0 | AJ17: 0 | AK17: 0 | AL17: =SUM(AM17:AP17) -> 0 | AM17: 0 | AN17: 0 | AO17: 0 | AP17: 0 | AQ17: =SUM(AR17:AU17) -> 0 | AR17: 0 | AS17: 0 | AT17: 0 | AU17: 0 | AZ17: ='[15]Баланс энергии'!$AF$18 -> 6.17 | BA17: ='[15]Баланс энергии'!$AG$18 -> 12.3
A18: 2. | B18: Потери электроэнергии в сети | C18: =SUM(D18:G18) -> 19199.85249 | D18: =D8*D19/100 -> 0 | E18: =E8*E19/100 -> 0 | F18: =F8*F19/100 -> 9420.103656 | G18: =G8*G19/100 -> 9779.748838 | H18: =SUM(I18:L18) -> 16285.96 | I18: =I8*I19/100 -> 0 | J18: =J8*J19/100 -> 0 | K18: =K8*K19/100 -> 8605.51395 | L18: =L8*L19/100 -> 7680.44605 | M18: =SUM(N18:Q18) -> 16389.2 | N18: =N8*N19/100 -> 0 | O18: =O8*O19/100 -> 0 | P18: =P8*P19/100 -> 8717.37183 | Q18: =Q8*Q19/100 -> 7671.82817 | R18: =SUM(S18:V18) -> 16082.80142 | S18: =S8*S19/100 -> 0 | T18: =T8*T19/100 -> 0 | U18: =U8*U19/100 -> 8544.580153 | V18: =V8*V19/100 -> 7538.221263 | W18: =SUM(X18:AA18) -> 8381.622881 | X18: =X8*X19/100 -> 0 | Y18: =Y8*Y19/100 -> 0 | Z18: =Z8*Z19/100 -> 4750.7044 | AA18: =AA8*AA19/100 -> 3630.918481 | AB18: =SUM(AC18:AF18) -> 8077.452151 | AC18: =AC8*AC19/100 -> 0 | AD18: =AD8*AD19/100 -> 0 | AE18: =AE8*AE19/100 -> 4652.77681 | AF18: =AF8*AF19/100 -> 3424.675341 | AG18: =SUM(AH18:AK18) -> 16064.3 | AH18: =AH8*AH19/100 -> 0 | AI18: =AI8*AI19/100 -> 0 | AJ18: =AJ8*AJ19/100 -> 8544.533014 | AK18: =AK8*AK19/100 -> 7519.766986 | AL18: =SUM(AM18:AP18) -> 7702 | AM18: =AM8*AM19/100 -> 0 | AN18: =AN8*AN19/100 -> 0 | AO18: =AO8*AO19/100 -> 4280.105414 | AP18: =AP8*AP19/100 -> 3421.894586 | AQ18: =SUM(AR18:AU18) -> 8362.3 | AR18: =AR8*AR19/100 -> 0 | AS18: =AS8*AS19/100 -> 0 | AT18: =AT8*AT19/100 -> 4264.4276 | AU18: =AU8*AU19/100 -> 4097.8724
A19: 2.1. | B19: то же в % (п.2./п.1.) | C19: =IF(C8=0,0,C18/C8*100) -> 13.20739651 | F19: 6.48 | G19: 12.76 | H19: =IF(H8=0,0,H18/H8*100) -> 11.76001294 | K19: 6.214 | L19: 12.48297249 | M19: =IF(M8=0,0,M18/M8*100) -> 11.59998288 | P19: 6.17 | Q19: 12.28241343 | R19: =IF(R8=0,0,R18/R8*100) -> 11.61331311 | U19: 6.17 | V19: 12.17 | W19: =IF(W8=0,0,W18/W8*100) -> 11.99717574 | Z19: 6.8 | AA19: 11.8 | AB19: =IF(AB8=0,0,AB18/AB8*100) -> 11.63153352 | AE19: 6.7 | AF19: 11 | AG19: =IF(AG8=0,0,AG18/AG8*100) -> 11.60001733 | AJ19: 6.17 | AK19: 12.31079484 | AL19: =IF(AL8=0,0,AL18/AL8*100) -> 11.10284337 | AO19: 6.17 | AP19: 11.25495992 | AQ19: =IF(AQ8=0,0,AQ18/AQ8*100) -> 12.0990191 | AT19: 6.17 | AU19: 13.35713681 | AX19: Уровень потерь на 2020-2024 гг.
A20: 3. | B20: Расход электроэнергии на производственные и хознужды | C20: =SUM(D20:G20) -> 0 | H20: =SUM(I20:L20) -> 0 | M20: =SUM(N20:Q20) -> 0 | R20: =SUM(S20:V20) -> 0 | W20: =SUM(X20:AA20) -> 0 | AB20: =SUM(AC20:AF20) -> 0 | AG20: =SUM(AH20:AK20) -> 0 | AL20: =SUM(AM20:AP20) -> 0 | AQ20: =SUM(AR20:AU20) -> 0
A21: 4. | B21: Полезный отпуск из сети | C21: =SUM(D21:G21) -> 126172.1175 | D21: =D22+D23+D24 -> 0 | E21: =E22+E23+E24 -> 0 | F21: =F22+F23+F24 -> 59308.06668 | G21: =G8-G18-G20 -> 66864.05083 | H21: =SUM(I21:L21) -> 122199.942 | I21: =I22+I23+I24 -> 0 | J21: =J22+J23+J24 -> 0 | K21: =K22+K23+K24 -> 68353.007 | L21: =L8-L18-L20 -> 53846.935 | M21: =SUM(N21:Q21) -> 124897.2154 | N21: =N22+N23+N24 -> 0 | O21: =O22+O23+O24 -> 0 | P21: =P22+P23+P24 -> 70107.14866 | Q21: =Q8-Q18-Q20 -> 54790.06674 | R21: =SUM(S21:V21) -> 122403.1006 | S21: =S22+S23+S24 -> 0 | T21: =T22+T23+T24 -> 0 | U21: =U22+U23+U24 -> 68000.309 | V21: =V8-V18-V20 -> 54402.79158 | W21: =SUM(X21:AA21) -> 61481.67712 | X21: =X22+X23+X24 -> 0 | Y21: =Y22+Y23+Y24 -> 0 | Z21: =Z22+Z23+Z24 -> 34342.1 | AA21: =AA8-AA18-AA20 -> 27139.57712 | AB21: =SUM(AC21:AF21) -> 61366.97785 | AC21: =AC22+AC23+AC24 -> 0 | AD21: =AD22+AD23+AD24 -> 0 | AE21: =AE22+AE23+AE24 -> 33658.241 | AF21: =AF8-AF18-AF20 -> 27708.73685 | AG21: =SUM(AH21:AK21) -> 122420.838 | AH21: =AH22+AH23+AH24 -> 0 | AI21: =AI22+AI23+AI24 -> 0 | AJ21: =AJ22+AJ23+AJ24 -> 68857.896 | AK21: =AK8-AK18-AK20 -> 53562.94198 | AL21: =SUM(AM21:AP21) -> 61667.61773 | AM21: =AM22+AM23+AM24 -> 0 | AN21: =AN22+AN23+AN24 -> 0 | AO21: =AO22+AO23+AO24 -> 34686.07586 | AP21: =AP8-AP18-AP20 -> 26981.54187 | AQ21: =SUM(AR21:AU21) -> 60753.22026 | AR21: =AR22+AR23+AR24 -> 0 | AS21: =AS22+AS23+AS24 -> 0 | AT21: =AT22+AT23+AT24 -> 34171.82015 | AU21: =AU8-AU18-AU20 -> 26581.40011 | AX21: 11.6
A22: 4.1. | B22: потребителям, присоединенным к сети | C22: =SUM(D22:G22) -> 125145.0775 | F22: 58281.02668 | G22: 66864.0508 | H22: =SUM(I22:L22) -> 121192.062 | K22: 67345.127 | L22: 53846.935 | M22: =SUM(N22:Q22) -> 123827.7201 | P22: 69037.6534 | Q22: 54790.06674 | R22: =SUM(S22:V22) -> 122199.942 | U22: 68000.309 | V22: 54199.633 | W22: =SUM(X22:AA22) -> 61409.3 | Z22: 34342.1 | AA22: 27067.2 | AB22: =SUM(AC22:AF22) -> 60790.641 | AE22: 33658.241 | AF22: 27132.4 | AG22: =SUM(AH22:AK22) -> 119409.4795 | AH22: 0 | AI22: 0 | AJ22: 65846.53748 | AK22: 53562.94198 | AL22: =SUM(AM22:AP22) -> 60150.69351 | AM22: 0 | AN22: 0 | AO22: 33169.15164 | AP22: 26981.54187 | AQ22: =SUM(AR22:AU22) -> 59258.78595 | AR22: 0 | AS22: 0 | AT22: 32677.38584 | AU22: 26581.40011
A23: 4.2. | B23: переток в филиал "Владимирэнерго" ОАО "МРСК Центра и Приволжья" | C23: =SUM(D23:G23) -> 1027.04 | F23: 1027.04 | H23: =SUM(I23:L23) -> 1007.88 | K23: 1007.88 | M23: =SUM(N23:Q23) -> 1069.495265 | P23: 1069.495265 | Q23: 0 | R23: =SUM(S23:V23) -> 0 | W23: =SUM(X23:AA23) -> 0 | AB23: =SUM(AC23:AF23) -> 0 | AG23: =SUM(AH23:AK23) -> 2987.403983 | AH23: 0 | AI23: 0 | AJ23: 2987.403983 | AK23: 0 | AL23: =SUM(AM23:AP23) -> 1504.857499 | AM23: 0 | AN23: 0 | AO23: 1504.857499 | AP23: 0 | AQ23: =SUM(AR23:AU23) -> 1482.546484 | AR23: 0 | AS23: 0 | AT23: 1482.546484 | AU23: 0
A24: 4.3. | B24: переток в другие сетевые организации | C24: =SUM(D24:G24) -> 0 | H24: =SUM(I24:L24) -> 0 | M24: =SUM(N24:Q24) -> 0 | R24: =SUM(S24:V24) -> 0 | W24: =SUM(X24:AA24) -> 0 | AB24: =SUM(AC24:AF24) -> 0 | AG24: =SUM(AH24:AK24) -> 23.95453955 | AH24: 0 | AI24: 0 | AJ24: 23.95453955 | AK24: 0 | AL24: =SUM(AM24:AP24) -> 12.06672036 | AM24: 0 | AN24: 0 | AO24: 12.06672036 | AP24: 0 | AQ24: =SUM(AR24:AU24) -> 11.88781919 | AR24: 0 | AS24: 0 | AT24: 11.88781919 | AU24: 0
B25: Проверка | D25: =D8-D18-D20-D22-D23-D24-E11-F11-G11 -> 0 | E25: =E8-E18-E20-E22-E23-E24-F12-G12 -> 0 | F25: =F8-F18-F20-F22-F23-F24-G13 -> 0 | G25: =G8-G18-G20-G22-G23-G24 -> 2.95843347e-05 | I25: =I8-I18-I20-I22-I23-I24-J11-K11-L11 -> 0 | J25: =J8-J18-J20-J22-J23-J24-K12-L12 -> 0 | K25: =K8-K18-K20-K22-K23-K24-L13 -> 0 | L25: =L8-L18-L20-L22-L23-L24 -> 7.275957614e-12 | N25: =N8-N18-N20-N22-N23-N24-O11-P11-Q11 -> 0 | O25: =O8-O18-O20-O22-O23-O24-P12-Q12 -> 0 | P25: =P8-P18-P20-P22-P23-P24-Q13 -> 0 | Q25: =Q8-Q18-Q20-Q22-Q23-Q24 -> 0 | S25: =S8-S18-S20-S22-S23-S24-T11-U11-V11 -> 0 | T25: =T8-T18-T20-T22-T23-T24-U12-V12 -> 0 | U25: =U8-U18-U20-U22-U23-U24-V13 -> 0 | V25: =V8-V18-V20-V22-V23-V24 -> 203.1585832 | X25: =X8-X18-X20-X22-X23-X24-Y11-Z11-AA11 -> 0 | Y25: =Y8-Y18-Y20-Y22-Y23-Y24-Z12-AA12 -> 0 | Z25: =Z8-Z18-Z20-Z22-Z23-Z24-AA13 -> 0 | AA25: =AA8-AA18-AA20-AA22-AA23-AA24 -> 72.3771192 | AC25: =AC8-AC18-AC20-AC22-AC23-AC24-AD11-AE11-AF11 -> 0 | AD25: =AD8-AD18-AD20-AD22-AD23-AD24-AE12-AF12 -> 0 | AE25: =AE8-AE18-AE20-AE22-AE23-AE24-AF13 -> 0 | AF25: =AF8-AF18-AF20-AF22-AF23-AF24 -> 576.3368491 | AH25: =AH8-AH18-AH20-AH22-AH23-AH24-AI11-AJ11-AK11 -> 0 | AI25: =AI8-AI18-AI20-AI22-AI23-AI24-AJ12-AK12 -> 0 | AJ25: =AJ8-AJ18-AJ20-AJ22-AJ23-AJ24-AK13 -> 0 | AK25: =AK8-AK18-AK20-AK22-AK23-AK24 -> 0 | AM25: =AM8-AM18-AM20-AM22-AM23-AM24-AN11-AO11-AP11 -> 0 | AN25: =AN8-AN18-AN20-AN22-AN23-AN24-AO12-AP12 -> 0 | AO25: =AO8-AO18-AO20-AO22-AO23-AO24-AP13 -> 0 | AP25: =AP8-AP18-AP20-AP22-AP23-AP24 -> 0 | AR25: =AR8-AR18-AR20-AR22-AR23-AR24-AS11-AT11-AU11 -> 0 | AS25: =AS8-AS18-AS20-AS22-AS23-AS24-AT12-AU12 -> 0 | AT25: =AT8-AT18-AT20-AT22-AT23-AT24-AU13 -> 0 | AU25: =AU8-AU18-AU20-AU22-AU23-AU24 -> 0
AG27: =AG21-AG23 -> 119433.434 | AL27: =AL21-AL23 -> 60162.76023 | AQ27: =AQ21-AQ23 -> 59270.67377
AG28: ='[16]Баланс энергии'!$W$21-'[16]Баланс энергии'!$W$24 -> 119433.434 | AL28: ='[16]Баланс энергии'!$M$21-'[16]Баланс энергии'!$M$24 -> 60162.76023 | AQ28: ='[16]Баланс энергии'!$R$21-'[16]Баланс энергии'!$R$24 -> 59270.67377

Sheet Баланс мощности
B2: Электрическая мощность по диапазонам напряжения
B3: ='Инф-я'!C14 -> МУП «Александровэлектросеть»
G5: МВт
A6: № п.п. | B6: Показатели | C6: По данным организации на 2021 год | H6: По данным экспертов на 2021 год
C7: Всего | D7: ВН | E7: СН1 | F7: СН2 | G7: НН | H7: Всего | I7: ВН | J7: СН1 | K7: СН2 | L7: НН
A8: 1 | B8: 2 | C8: 3 | D8: 4 | E8: 5 | F8: 6 | G8: 7 | H8: 8 | I8: 9 | J8: 10 | K8: 11 | L8: 12
A9: 1. | B9: Поступление мощности в сеть , ВСЕГО | C9: =C19+C21+C22 -> 22 | D9: =D15+D16+D17+D18 -> 22 | E9: =E10+E15+E16+E17+E18 -> 0 | F9: =F10+F15+F16+F17+F18 -> 22 | G9: =G10+G15+G16+G17+G18 -> 20.6426 | H9: =H19+H21+H22 -> 0 | I9: =I15+I16+I17+I18 -> 0 | J9: =J10+J15+J16+J17+J18 -> 0 | K9: =K10+K15+K16+K17+K18 -> 0 | L9: =L10+L15+L16+L17+L18 -> 0
A10: 1.1. | B10: из смежной сети, всего | C10: х | D10: х | E10: =E12 -> 0 | F10: =F12+F13 -> 22 | G10: =G12+G13+G14 -> 20.6426 | H10: х | I10: х | J10: =J12 -> 0 | K10: =K12+K13 -> 0 | L10: =L12+L13+L14 -> 0
B11: в том числе из сети | C11: х | D11: х | E11: х | F11: х | G11: х | H11: х | I11: х | J11: х | K11: х | L11: х
A12: 1.1.1. | B12: ВН | C12: х | D12: х | F12: =D9-D19-D21-D22-G12-E12 -> 22 | H12: х | I12: х | K12: =I9-I19-I21-I22-L12-J12 -> 0
A13: 1.1.2. | B13: СН1 | C13: х | D13: х | E13: х | F13: =E9-E19-E21-E22-G13 -> 0 | H13: х | I13: х | J13: х | K13: =J9-J19-J21-J22-L13 -> 0
A14: 1.1.3. | B14: СН2 | C14: х | D14: х | E14: х | F14: х | G14: =F9-F19-F21-F22 -> 20.6426 | H14: х | I14: х | J14: х | K14: х | L14: =K9-K19-K21-K22 -> 0
A15: 1.2. | B15: от электростанций | C15: =SUM(D15:G15) -> 0 | H15: =SUM(I15:L15) -> 0
A16: 1.3. | B16: от ОАО "ФСК ЕЭС" | C16: =SUM(D16:G16) -> 22 | D16: 22 | H16: =SUM(I16:L16) -> 0
A17: 1.4. | B17: от филиала "Владимирэнерго" ОАО "МРСК Центра и Приволжья" | C17: =SUM(D17:G17) -> 0 | H17: =SUM(I17:L17) -> 0
A18: 1.5. | B18: от других сетевых организаций | C18: =SUM(D18:G18) -> 0 | H18: =SUM(I18:L18) -> 0
A19: 2. | B19: Потери мощности в сети | C19: =SUM(D19:G19) -> 1.3574 | D19: =D9*D20/100 -> 0 | E19: =E9*E20/100 -> 0 | F19: =F9*F20/100 -> 1.3574 | G19: =G9*G20/100 -> 0 | H19: =SUM(I19:L19) -> 0 | I19: =I9*I20/100 -> 0 | J19: =J9*J20/100 -> 0 | K19: =K9*K20/100 -> 0 | L19: =L9*L20/100 -> 0
A20: 2.1. | B20: то же в % (п.2./п.1.) | C20: =IF(C9=0,0,C19/C9*100) -> 6.17 | D20: ='Баланс энергии'!S19 -> 0 | E20: ='Баланс энергии'!T19 -> 0 | F20: ='Баланс энергии'!U19 -> 6.17 | H20: =IF(H9=0,0,H19/H9*100) -> 0 | I20: ='Баланс энергии'!AH19 -> 0 | J20: ='Баланс энергии'!AI19 -> 0 | K20: ='Баланс энергии'!AJ19 -> 6.17
A21: 3. | B21: Расход электроэнергии на производственные и хознужды | C21: =SUM(D21:G21) -> 0 | H21: =SUM(I21:L21) -> 0
A22: 4. | B22: Полезный отпуск из сети | C22: =SUM(D22:G22) -> 20.6426 | D22: =D23+D24+D25 -> 0 | E22: =E23+E24+E25 -> 0 | F22: =F23+F24+F25 -> 0 | G22: =G9-G19-G21 -> 20.6426 | H22: =SUM(I22:L22) -> 0 | I22: =I23+I24+I25 -> 0 | J22: =J23+J24+J25 -> 0 | K22: =K23+K24+K25 -> 0 | L22: =L9-L19-L21 -> 0
A23: 4.1. | B23: потребителям, присоединенным к сети | C23: =SUM(D23:G23) -> 0 | H23: =SUM(I23:L23) -> 0
A24: 4.2. | B24: переток в филиал "Владимирэнерго" ОАО "МРСК Центра и Приволжья" | C24: =SUM(D24:G24) -> 0 | H24: =SUM(I24:L24) -> 0
A25: 4.3. | B25: переток в другие сетевые организации | C25: =SUM(D25:G25) -> 0 | H25: =SUM(I25:L25) -> 0
B26: Проверка | D26: =D9-D19-D21-D23-D24-D25-E12-F12-G12 -> 0 | E26: =E9-E19-E21-E23-E24-E25-F13-G13 -> 0 | F26: =F9-F19-F21-F23-F24-F25-G14 -> 0 | G26: =G9-G19-G21-G23-G24-G25 -> 20.6426 | I26: =I9-I19-I21-I23-I24-I25-J12-K12-L12 -> 0 | J26: =J9-J19-J21-J23-J24-J25-K13-L13 -> 0 | K26: =K9-K19-K21-K23-K24-K25-L14 -> 0 | L26: =L9-L19-L21-L23-L24-L25 -> 0

Sheet СВОД по % по рассрочке (hidden)
B2: Выпадающие доходы сетевой организации от выплаты процентов по кредитным договорам, связанным с рассрочкой по оплате субъектами малого и среднего предпринимательства технологического присоединения энергопринимающих устройств максимальной мощностью свыше 15 кВт и до 150 кВт включительно в 2021 году
A3: ='Инф-я'!$C$14 -> МУП «Александровэлектросеть»
A5: N п/п | B5: Информация о договоре технологического присоединения (Контрагент (наименование), № договора ТП, Дата заключения договора) | F5: Ставка рефинансирования Центрального банка Российской Федерации | G5: Год закрытия | H5: Квартал закрытия | I5: Сумма договора,тыс. руб. с НДС | J5: Размер расходов, связанных с предоставлением беспроцентной рассрочки в 2021 году, тыс. руб.
A8: 1 | B8: 2 | F8: 3 | G8: 4 | H8: 5 | I8: 6 | J8: 7
A9: 1 | B9: =Заявитель1!A4 -> 0 | F9: =Заявитель1!B31 -> 0 | G9: =Заявитель1!B34 -> 0 | H9: =Заявитель1!B32 -> 0 | I9: =Заявитель1!B33 -> 0 | J9: =Заявитель1!G36 -> 0
A10: 2 | B10: =Заявитель2!A4 -> 0 | F10: =Заявитель2!B31 -> 0 | G10: =Заявитель2!B34 -> 0 | H10: =Заявитель2!B32 -> 0 | I10: =Заявитель2!B33 -> 0 | J10: =Заявитель2!G36 -> 0
A11: 3 | B11: =Заявитель3!A4 -> 0 | F11: =Заявитель3!B31 -> 0 | G11: =Заявитель3!B34 -> 0 | H11: =Заявитель3!B32 -> 0 | I11: =Заявитель3!B33 -> 0 | J11: =Заявитель3!G36 -> 0
A12: 4 | B12: =Заявитель4!A4 -> 0 | F12: =Заявитель4!B31 -> 0 | G12: =Заявитель4!B34 -> 0 | H12: =Заявитель4!B32 -> 0 | I12: =Заявитель4!B33 -> 0 | J12: =Заявитель4!G36 -> 0
A15: Добавить
A16: ИТОГО | I16: =SUM(I9:I15) -> 0 | J16: =SUM(J9:J15) -> 0
B18: Свод по кварталам | C18: Сумма по договорам
B19: 1 | C19: =SUMIF(H$5:H$20,B19,I$5:I$20) -> 0
B20: 2 | C20: =SUMIF(H$5:H$20,B20,I$5:I$20) -> 0
B21: 3 | C21: =SUMIF(H$5:H$20,B21,I$5:I$20) -> 0
B22: 4 | C22: =SUMIF(H$5:H$20,B22,I$5:I$20) -> 0
B23: ГОД | C23: =SUM(C19:C22) -> 0
C24: =C23-I16 -> 0
F26: Приложение 2 к Методическим указаниям, утвержденным приказом ФСТ от 11.09.2014 г. №215-э/1
A30: Таблица 1. Расчет суммарного размера платы за технологическое присоединение, подлежащего беспроцентной рассрочке
B32: ='Инф-я'!C13 -> МУП "АЭС"
Q33: тыс. руб. с НДС
A34: N п/п | B34: Показатель | F34: Фактические данные за предыдущий период регулирования | K34: Ожидаемые данные за текущий период регулирования | P34: Плановые показатели на следующий период регулирования
F35: 1 кв. | G35: 2 кв. | H35: 3 кв. | I35: 4 кв. | J35: всего за год | K35: 1 кв. | L35: 2 кв. | M35: 3 кв. | N35: 4 кв. | O35: всего за год | P35: 1 кв. | Q35: 2 кв. | R35: 3 кв. | S35: 4 кв. | T35: всего за год
A36: 1 | B36: Суммарный размер платы за технологическое присоединение, тыс. руб., в т.ч.: | J36: =SUM(F36:I36) -> 0 | O36: =SUM(K36:N36) -> 0 | P36: =C19 -> 0 | Q36: =C20 -> 0 | R36: =C21 -> 0 | S36: =C22 -> 0 | T36: =SUM(P36:S36) -> 0
A37: 2 | B37: Суммарный размер платы за технологическое присоединение, подлежащий беспроцентной рассрочке | J37: =SUM(F37:I37) -> 0 | O37: =SUM(K37:N37) -> 0 | P37: =P36*0.95 -> 0 | Q37: =Q36*0.95 -> 0 | R37: 0 | S37: 0 | T37: 0
B39: Руководитель организации | D39: ='Инф-я'!C21 -> Ю.В. Николаев
A41: Примечание:
A42: 1) Суммарный размер платы за технологическое присоединение (п. 1) за каждый квартал следующего расчетного периода регулирования представляет собой прогнозную величину платы за технологическое присоединение для заявителей, обращающихся за беспроцентной рассрочкой, определенную на основе фактических данных о заявителях, обратившихся за рассрочкой за последний год, но не ниже документально подтвержденных данных о заявителях, обратившихся за рассрочкой на следующий период регулирования.
A43: 2) Суммарный размер платы за технологическое присоединение, подлежащий беспроцентной рассрочке (п. 2), за каждый квартал определяется как суммарный размер платы за технологическое присоединение (п. 1) за каждый квартал, умноженный на 0,95.

Sheet Возврат заемных средств (hidden)
A2: Расходы на возврат и обслуживание долгосрочных заемных средств, направляемых на финансирование капитальных вложений
A3: ='Инф-я'!C14 -> МУП «Александровэлектросеть»
A5: Показатели | B5: 2019 год | D5: 2020 год | F5: 2021 год
B6: Утверждено | C6: Факт | D6: Утверждено | E6: Ожидаемые | F6: По данным организации | G6: По данным экспертов
A7: 1 | B7: 2 | C7: 3 | D7: 4 | E7: 5 | F7: 6 | G7: 7
A8: Расходы по возврату заемных средств, направляемых на финансирование капитальных вложений
A10: Итого расходы на возврат и обслуживание долгосрочных заемных средств, направляемых на финансирование капитальных вложений | B10: =B9+B8 -> 0 | C10: 0 | D10: 0 | E10: 0 | F10: 0 | G10: 0
A11: в т.ч. по уровням напряжения: ВН | B11: х | C11: х | E11: х
A12: СН1 | B12: х | C12: х | E12: х
A13: СН11 | B13: х | C13: х | E13: х
A14: НН | B14: х | C14: х | E14: х
A16: Руководитель организации | D16: ='Инф-я'!$C$21 -> Ю.В. Николаев

Sheet Лист1

Sheet НВВ для шаблона ЕИАС отчет (hidden)
A2: Наименование организации | B2: Период | C2: Расчет коэффициента индексации | M2: Расчет подконтрольных расходов | AH2: Расчет неподконтрольных расходов | BB2: Расходы, связанные с компенсацией незапланированных расходов или полученного избытка | BC2: Итого НВВ на содержание сетей | BD2: в том числе | BF2: Доля стороннего отпуска в сеть от организаций, занимающихся несколькими видами деятельности (без собственных нужд) | BG2: Отношение НВВ на содержание сетей текущего года к предыдущему года | BH2: Поступление в сеть электроэнергии | BI2: Объем технологического расхода (потерь) | BJ2: Тариф на покупку потерь | BK2: Норматив техноло-гического расхода (потерь) электро-энергии | BL2: Итого расходов на оплату потерь | BM2: в том числе | BO2: Прирост расходов на оплату потерь текущего года к предыдущему году | BP2: Поступление в сеть мощности | BQ2: Уровень надежности реализуемых товаров (услуг) (П п) | BR2: Уровень качества реализуемых товаров (услуг) (П тсо) | BS2: Уровень качества реализуемых товаров (услуг) (П тпр)
C3: Инфляция | D3: Индекс эффективности операционных расходов | E3: Количество активов, всего | F3: ВН | G3: СН1 | H3: СН2 | I3: НН | J3: Индекс изменения количества активов | K3: Коэффициент эластичности затрат по росту активов | L3: Итого коэффициент индексации | M3: Материальные затраты | N3: Сырье, материалы, запасные части, инструмент, топливо | O3: Работы и услуги производственного характера (в т.ч. услуги сторонних организаций по содержанию сетей и распределительных устройств) | P3: Расходы на оплату труда | Q3: Прочие расходы, всего, в том числе: | R3: Ремонт основных фондов | S3: Оплата работ и услуг сторонних организаций | T3: услуги связи | U3: Расходы на услуги вневедомственной охраны и коммунального хозяйства | V3: Расходы на юридические и информационные услуги | W3: Расходы на аудиторские и консультационные услуги | X3: Транспортные услуги | Y3: Прочие услуги сторонних организаций | Z3: Расходы на командировки и представительские | AA3: Расходы на подготовку кадров | AB3: Расходы на обеспечение нормальных условий труда и мер по технике безопасности | AC3: Расходы на страхование | AD3: Другие прочие расходы | AE3: Электроэнергия на хоз. нужды | AF3: Подконтрольные расходы из прибыли | AG3: ИТОГО подконтрольные расходы | AH3: Оплата услуг ОАО "ФСК ЕЭС" | AI3: в том числе | AK3: Теплоэнергия | AL3: Аренда, всего | AM3: в том числе аренда объектов электро- сетевого комплекса | AN3: Налоги (без учета налога на прибыль), всего, в том числе: | AO3: плата за землю | AP3: Налог на имущество | AQ3: Прочие налоги и сборы | AR3: Отчисления на социальные нужды (ЕСН) | AS3: Прочие неподконтрольные расходы | AT3: Налог на прибыль, в том числе: | AU3: налог на прибыль на капитальные вложения | AV3: Выпадающие доходы по п.87 Основ ценообразования | AW3: Амортизация ОС | AX3: Прибыль на капитальные вложения | AY3: Возврат заемных средств, направляемый на финансирование капитальных вложений | AZ3: Проверка прибыли на капитальные вложения (не более 12% от НВВ на содержание сетей) | BA3: ИТОГО неподконтрольных расходов
AI4: Оплата услуг ОАО "ФСК ЕЭС" 1 полугодие | AJ4: Оплата услуг ОАО "ФСК ЕЭС" 2 полугодие | BD4: НВВ на 1 полугодие | BE4: НВВ на 2 полугодие | BM4: расходы на 1 полугодие | BN4: расходы на 2 полугодие
C5: % | D5: % | E5: у.е. | F5: у.е. | G5: у.е. | H5: у.е. | I5: у.е. | J5: % | M5: тыс.руб | N5: тыс.руб | O5: тыс.руб | P5: тыс.руб | Q5: тыс.руб | R5: тыс.руб | S5: тыс.руб | T5: тыс.руб | U5: тыс.руб | V5: тыс.руб | W5: тыс.руб | X5: тыс.руб | Y5: тыс.руб | Z5: тыс.руб | AA5: тыс.руб | AB5: тыс.руб | AC5: тыс.руб | AD5: тыс.руб | AE5: тыс.руб | AF5: тыс.руб | AG5: тыс.руб | AH5: тыс.руб | AI5: тыс.руб | AJ5: тыс.руб | AK5: тыс.руб | AL5: тыс.руб | AM5: тыс.руб | AN5: тыс.руб | AO5: тыс.руб | AP5: тыс.руб | AQ5: тыс.руб | AR5: тыс.руб | AS5: тыс.руб | AT5: тыс.руб | AU5: тыс.руб | AV5: тыс.руб | AW5: тыс.руб | AX5: тыс.руб | AY5: тыс.руб | AZ5: % | BA5: тыс.руб | BB5: тыс.руб | BC5: тыс.руб | BD5: тыс.руб | BE5: тыс.руб | BF5: % | BG5: % | BH5: млн.кВтч | BI5: млн.кВтч | BJ5: руб./МВтч | BK5: % | BL5: тыс.руб | BM5: тыс.руб | BN5: тыс.руб | BO5: % | BP5: МВт
A6: А | B6: Б | C6: 0.1 | D6: 0.2 | E6: 0.3 | F6: 0.3.1 | G6: 0.3.2 | H6: 0.3.3 | I6: 0.3.4 | J6: 0.4 | K6: 0.5 | L6: 0.6 | M6: 1.1 | N6: 1.1.1 | O6: 1.1.2 | P6: 1.2 | Q6: 1.3 | R6: 1.3.1 | S6: 1.3.2 | T6: 1.3.2.1 | U6: 1.3.2.2 | V6: 1.3.2.3 | W6: 1.3.2.4 | X6: 1.3.2.5 | Y6: 1.3.2.6 | Z6: 1.3.3 | AA6: 1.3.4 | AB6: 1.3.5 | AC6: 1.3.6 | AD6: 1.3.7 | AE6: 1.4 | AF6: 1.5 | AG6: 1.6 | AH6: 2.1 | AI6: 2.1.1 | AJ6: 2.1.2 | AK6: 2.2 | AL6: 2.3 | AM6: 2.3.1 | AN6: 2.4 | AO6: 2.4.1 | AP6: 2.4.2 | AQ6: 2.4.3 | AR6: 2.5 | AS6: 2.6 | AT6: 2.7 | AU6: 2.7.1 | AV6: 2.8 | AW6: 2.9 | AX6: 2.10 | AY6: 2.11 | AZ6: 2.12 | BA6: 2.13 | BB6: 3 | BC6: 4 | BD6: 4.1 | BE6: 4.2 | BF6: 5 | BG6: 6 | BH6: 7 | BI6: 8 | BJ6: 9 | BK6: 10 | BL6: 11 | BM6: 11.1 | BN6: 11.2 | BO6: 12 | BP6: 13 | BQ6: 14 | BR6: 15.1 | BS6: 15.2
B7: 2020 | C7: =#REF! ->  | D7: =#REF! ->  | E7: =SUM(F7:I7) ->  | F7: =#REF! ->  | G7: =#REF! ->  | H7: =#REF! ->  | I7: =#REF! ->  | K7: 0.75 | M7: =SUM(N7:O7) ->  | N7: =#REF! ->  | O7: =#REF! ->  | P7: =#REF! ->  | Q7: =R7+S7+Z7+AA7+AB7+AC7+AD7+AE7+AF7 ->  | R7: =#REF! ->  | S7: =SUM(T7:Y7) ->  | Y7: =#REF! ->  | Z7: =#REF! ->  | AA7: =#REF! ->  | AB7: =#REF! ->  | AC7: =#REF!+#REF! ->  | AE7: =#REF! ->  | AF7: =#REF! ->  | AG7: =M7+P7+Q7 ->  | AH7: =#REF! ->  | AI7: =AH7/2 ->  | AJ7: =AI7 ->  | AK7: =#REF! ->  | AL7: =#REF! ->  | AM7: =#REF! ->  | AN7: =SUM(AO7:AQ7) ->  | AO7: =#REF! ->  | AP7: =#REF! ->  | AQ7: =#REF!+#REF! ->  | AR7: =#REF! ->  | AS7: =#REF! ->  | AT7: =#REF! ->  | AU7: =AX7/0.8*0.2 ->  | AV7: =#REF! ->  | AW7: =#REF! ->  | AX7: =#REF! ->  | AY7: =#REF! ->  | AZ7: =AX7/0.8*0.2 ->  | BA7: =#REF! ->  | BB7: =#REF! ->  | BC7: =#REF! ->  | BD7: =#REF! ->  | BH7: ='НВВ для шаблона ЕИАС предел'!BH7 -> 141286.4154 | BI7: ='Баланс энергии'!AG18 -> 16064.3 | BK7: =IF(BH7=0,0,BI7/BH7) -> 0.1137002447 | BL7: =BI7*BJ7 -> 0 | BM7: =#REF! ->  | BN7: =BL7-BM7 ->  | BQ7: =#REF! ->  | BR7: =#REF! ->  | BS7: =#REF! -> 
B8: 2021 | C8: =#REF! ->  | D8: =D7 ->  | E8: =SUM(F8:I8) ->  | F8: =#REF! ->  | G8: =#REF! ->  | H8: =#REF! ->  | I8: =#REF! ->  | J8: =IF(E7=0,0,(E8-E7)/E7*K8) ->  | K8: 0.75 | L8: =(1+C8)*(1-D8)*(1+J8) ->  | M8: =SUM(N8:O8) ->  | N8: =N7*$L8 ->  | O8: =O7*L8 ->  | P8: =P7*$L8 ->  | R8: =R7*$L8 ->  | T8: =T7*$L8 ->  | U8: =U7*L8 ->  | V8: =V7*L8 ->  | W8: =W7*$L8 ->  | X8: =X7*$L8 ->  | AH8: =AI8+AJ8 ->  | AI8: =#REF! ->  | AJ8: =#REF! ->  | AK8: =#REF! ->  | AL8: =#REF! ->  | AO8: =#REF! ->  | AP8: =#REF! ->  | AQ8: =#REF!+#REF! ->  | AR8: =#REF! ->  | AS8: =#REF! ->  | AT8: =#REF! ->  | AU8: =AX7/0.8*0.2 ->  | AV8: =#REF! ->  | AW8: =#REF! ->  | AX8: =#REF! ->  | AY8: =#REF! ->  | AZ8: =nerr((AX8+AY8)/(BC8-AH8-AU8-AX8-AY8-AM8)) ->  | BA8: =AH8+AK8+AL8+AN8+AS8+AT8+AV8+AR8+AW8+AX8+AY8 ->  | BB8: =#REF! ->  | BC8: =SUM(BA8,BB8,AG8) ->  | BF8: =nerr((BD8+BE8)/BC8) ->  | BG8: =nerr((BC8-BC7)/BC7) ->  | BH8: ='Баланс энергии'!AG8 -> 138485.138 | BI8: =BI7 -> 16064.3 | BK8: 0.1160001733 | BL8: 0 | BM8: =#REF!/2 ->  | BO8: =nerr((BL8-BL7)/BL7) ->  | BQ8: =#REF! ->  | BR8: =#REF! ->  | BS8: =#REF! -> 
B9: 2022 | D9: =D8 ->  | E9: 0 | J9: =IF(E8=0,0,(E9-E8)/E8*K9) ->  | K9: 0.75 | L9: =(1+C9)*(1-D9)*(1+J9) ->  | N9: =N8*$L9 ->  | O9: =O8*L9 ->  | P9: =P8*$L9 ->  | R9: =R8*$L9 ->  | T9: =T8*$L9 ->  | U9: =U8*L9 ->  | V9: =V8*L9 ->  | W9: =W8*$L9 ->  | AH9: 0 | AN9: 0 | AZ9: =nerr((AX9+AY9)/(BC9-AH9-AU9-AX9-AY9-AM9)) ->  | BA9: 0 | BF9: =nerr((BD9+BE9)/BC9) ->  | BG9: =nerr((BC9-BC8)/BC8) ->  | BI9: =BI8 -> 16064.3 | BK9: 0 | BL9: 0 | BM9: =#REF!/2 ->  | BO9: =nerr((BL9-BL8)/BL8) -> 
B10: 2023 | E10: 0 | J10: =IF(E9=0,0,(E10-E9)/E9*K10) -> 0 | K10: 0.75 | L10: =(1+C10)*(1-D10)*(1+J10) ->  | AH10: 0 | AN10: 0 | AZ10: =nerr((AX10+AY10)/(BC10-AH10-AU10-AX10-AY10-AM10)) ->  | BA10: 0 | BF10: =nerr((BD10+BE10)/BC10) ->  | BG10: =nerr((BC10-BC9)/BC9) ->  | BI10: 16064.3 | BK10: 0 | BL10: 0 | BM10: =#REF!/2 ->  | BO10: =nerr((BL10-BL9)/BL9) -> 
B11: 2024 | E11: 0 | J11: =IF(E10=0,0,(E11-E10)/E10*K11) -> 0 | K11: 0.75 | L11: =(1+C11)*(1-D11)*(1+J11) ->  | M11: =SUM(N11:O11) ->  | AH11: 0 | AN11: 0 | AZ11: =((AX11+AY11)/(BC11-AH11-AU11-AX11-AY11-AM11)) ->  | BA11: 0 | BF11: =((BD11+BE11)/BC11) ->  | BG11: =nerr((BC11-BC10)/BC10) ->  | BI11: 16064.3 | BK11: 0 | BL11: 0 | BM11: =#REF!/2 ->  | BO11: =nerr((BL11-BL10)/BL10) -> 

Sheet НВВ для шаблона ЕИАС предел (hidden)
A2: Наименование организации | B2: Период | C2: Расчет коэффициента индексации | M2: Расчет подконтрольных расходов | AH2: Расчет неподконтрольных расходов | BB2: Расходы, связанные с компенсацией незапланированных расходов или полученного избытка | BC2: Итого НВВ на содержание сетей | BD2: в том числе | BF2: Доля стороннего отпуска в сеть от организаций, занимающихся несколькими видами деятельности (без собственных нужд) | BG2: Отношение НВВ на содержание сетей текущего года к предыдущему года | BH2: Поступление в сеть электроэнергии | BI2: Объем технологического расхода (потерь) | BJ2: Тариф на покупку потерь | BK2: Норматив техноло-гического расхода (потерь) электро-энергии | BL2: Итого расходов на оплату потерь | BM2: в том числе | BO2: Прирост расходов на оплату потерь текущего года к предыдущему году | BP2: Поступление в сеть мощности | BQ2: Уровень надежности реализуемых товаров (услуг) (П п) | BR2: Уровень качества реализуемых товаров (услуг) (П тсо) | BS2: Уровень качества реализуемых товаров (услуг) (П тпр)
C3: Инфляция | D3: Индекс эффективности операционных расходов | E3: Количество активов, всего | F3: ВН | G3: СН1 | H3: СН2 | I3: НН | J3: Индекс изменения количества активов | K3: Коэффициент эластичности затрат по росту активов | L3: Итого коэффициент индексации | M3: Материальные затраты | N3: Сырье, материалы, запасные части, инструмент, топливо | O3: Работы и услуги производственного характера (в т.ч. услуги сторонних организаций по содержанию сетей и распределительных устройств) | P3: Расходы на оплату труда | Q3: Прочие расходы, всего, в том числе: | R3: Ремонт основных фондов | S3: Оплата работ и услуг сторонних организаций | T3: услуги связи | U3: Расходы на услуги вневедомственной охраны и коммунального хозяйства | V3: Расходы на юридические и информационные услуги | W3: Расходы на аудиторские и консультационные услуги | X3: Транспортные услуги | Y3: Прочие услуги сторонних организаций | Z3: Расходы на командировки и представительские | AA3: Расходы на подготовку кадров | AB3: Расходы на обеспечение нормальных условий труда и мер по технике безопасности | AC3: Расходы на страхование | AD3: Другие прочие расходы | AE3: Электроэнергия на хоз. нужды | AF3: Подконтрольные расходы из прибыли | AG3: ИТОГО подконтрольные расходы | AH3: Оплата услуг ОАО "ФСК ЕЭС" | AI3: в том числе | AK3: Теплоэнергия | AL3: Аренда, всего | AM3: в том числе аренда объектов электро- сетевого комплекса | AN3: Налоги (без учета налога на прибыль), всего, в том числе: | AO3: плата за землю | AP3: Налог на имущество | AQ3: Прочие налоги и сборы | AR3: Отчисления на социальные нужды (ЕСН) | AS3: Прочие неподконтрольные расходы | AT3: Налог на прибыль, в том числе: | AU3: налог на прибыль на капитальные вложения | AV3: Выпадающие доходы по п.87 Основ ценообразования | AW3: Амортизация ОС | AX3: Прибыль на капитальные вложения | AY3: Возврат заемных средств, направляемый на финансирование капитальных вложений | AZ3: Проверка прибыли на капитальные вложения (не более 12% от НВВ на содержание сетей) | BA3: ИТОГО неподконтрольных расходов
AI4: Оплата услуг ОАО "ФСК ЕЭС" 1 полугодие | AJ4: Оплата услуг ОАО "ФСК ЕЭС" 2 полугодие | BD4: НВВ на 1 полугодие | BE4: НВВ на 2 полугодие | BM4: расходы на 1 полугодие | BN4: расходы на 2 полугодие
C5: % | D5: % | E5: у.е. | F5: у.е. | G5: у.е. | H5: у.е. | I5: у.е. | J5: % | M5: тыс.руб | N5: тыс.руб | O5: тыс.руб | P5: тыс.руб | Q5: тыс.руб | R5: тыс.руб | S5: тыс.руб | T5: тыс.руб | U5: тыс.руб | V5: тыс.руб | W5: тыс.руб | X5: тыс.руб | Y5: тыс.руб | Z5: тыс.руб | AA5: тыс.руб | AB5: тыс.руб | AC5: тыс.руб | AD5: тыс.руб | AE5: тыс.руб | AF5: тыс.руб | AG5: тыс.руб | AH5: тыс.руб | AI5: тыс.руб | AJ5: тыс.руб | AK5: тыс.руб | AL5: тыс.руб | AM5: тыс.руб | AN5: тыс.руб | AO5: тыс.руб | AP5: тыс.руб | AQ5: тыс.руб | AR5: тыс.руб | AS5: тыс.руб | AT5: тыс.руб | AU5: тыс.руб | AV5: тыс.руб | AW5: тыс.руб | AX5: тыс.руб | AY5: тыс.руб | AZ5: % | BA5: тыс.руб | BB5: тыс.руб | BC5: тыс.руб | BD5: тыс.руб | BE5: тыс.руб | BF5: % | BG5: % | BH5: млн.кВтч | BI5: млн.кВтч | BJ5: руб./МВтч | BK5: % | BL5: тыс.руб | BM5: тыс.руб | BN5: тыс.руб | BO5: % | BP5: МВт
A6: А | B6: Б | C6: 0.1 | D6: 0.2 | E6: 0.3 | F6: 0.3.1 | G6: 0.3.2 | H6: 0.3.3 | I6: 0.3.4 | J6: 0.4 | K6: 0.5 | L6: 0.6 | M6: 1.1 | N6: 1.1.1 | O6: 1.1.2 | P6: 1.2 | Q6: 1.3 | R6: 1.3.1 | S6: 1.3.2 | T6: 1.3.2.1 | U6: 1.3.2.2 | V6: 1.3.2.3 | W6: 1.3.2.4 | X6: 1.3.2.5 | Y6: 1.3.2.6 | Z6: 1.3.3 | AA6: 1.3.4 | AB6: 1.3.5 | AC6: 1.3.6 | AD6: 1.3.7 | AE6: 1.4 | AF6: 1.5 | AG6: 1.6 | AH6: 2.1 | AI6: 2.1.1 | AJ6: 2.1.2 | AK6: 2.2 | AL6: 2.3 | AM6: 2.3.1 | AN6: 2.4 | AO6: 2.4.1 | AP6: 2.4.2 | AQ6: 2.4.3 | AR6: 2.5 | AS6: 2.6 | AT6: 2.7 | AU6: 2.7.1 | AV6: 2.8 | AW6: 2.9 | AX6: 2.10 | AY6: 2.11 | AZ6: 2.12 | BA6: 2.13 | BB6: 3 | BC6: 4 | BD6: 4.1 | BE6: 4.2 | BF6: 5 | BG6: 6 | BH6: 7 | BI6: 8 | BJ6: 9 | BK6: 10 | BL6: 11 | BM6: 11.1 | BN6: 11.2 | BO6: 12 | BP6: 13 | BQ6: 14 | BR6: 15.1 | BS6: 15.2
B7: 2020 | C7: =#REF! ->  | D7: =#REF! ->  | E7: =SUM(F7:I7) ->  | F7: =#REF! ->  | G7: =#REF! ->  | H7: =#REF! ->  | I7: =#REF! ->  | M7: =SUM(N7:O7) ->  | N7: =#REF! ->  | O7: =#REF! ->  | P7: =#REF! ->  | Q7: =R7+S7+Z7+AA7+AB7+AC7+AD7+AE7+AF7 ->  | R7: =#REF! ->  | S7: =SUM(T7:Y7) -> 0 | Z7: =#REF! ->  | AA7: =#REF! ->  | AB7: =#REF! ->  | AC7: =#REF! ->  | AD7: =#REF!+#REF! ->  | AF7: =#REF! ->  | AG7: =M7+P7+Q7 ->  | AH7: =#REF! ->  | AI7: =AH7/2 ->  | AJ7: =AI7 ->  | AK7: =#REF! ->  | AL7: =#REF! ->  | AM7: =#REF! ->  | AN7: =SUM(AO7:AQ7) ->  | AO7: =#REF! ->  | AP7: =#REF! ->  | AQ7: =#REF!+#REF! ->  | AR7: =#REF! ->  | AS7: =#REF! ->  | AT7: =#REF! ->  | AU7: =AX7/0.8*0.2 ->  | AV7: =#REF! ->  | AW7: =#REF! ->  | AX7: =#REF! ->  | AY7: =#REF! ->  | BA7: =AH7+AK7+AL7+AN7+AS7+AT7+AV7+AR7+AW7+AX7+AY7 ->  | BB7: =#REF!+#REF! ->  | BC7: =SUM(BA7,BB7,AG7) ->  | BH7: ='Баланс энергии'!M8 -> 141286.4154 | BI7: ='Баланс энергии'!M18 -> 16389.2 | BK7: =IF(BH7=0,0,BI7/BH7) -> 0.1159998288 | BL7: =BI7*BJ7 -> 0 | BM7: =#REF! ->  | BN7: =BL7-BM7 ->  | BP7: ='Баланс мощности'!H9 -> 0 | BQ7: =#REF! ->  | BR7: =#REF! ->  | BS7: =#REF! -> 
B8: 2021 | C8: =#REF! ->  | D8: =D7 ->  | E8: =#REF! ->  | F8: =#REF! ->  | G8: =#REF! ->  | H8: =#REF! ->  | I8: =#REF! ->  | J8: =IF(E7=0,0,(E8-E7)/E7*K8) ->  | K8: 0.75 | L8: =(1+C8)*(1-D8)*(1+J8) ->  | N8: =N7*$L8 ->  | O8: =O7*L8 ->  | P8: =P7*$L8 ->  | R8: =R7*$L8 ->  | T8: =T7*$L8 ->  | U8: =U7*L8 ->  | V8: =V7*L8 ->  | W8: =W7*$L8 ->  | X8: =X7*$L8 ->  | AH8: =AI8+AJ8 ->  | AI8: =#REF! ->  | AJ8: =#REF! ->  | AK8: =#REF! ->  | AL8: =#REF! ->  | AM8: =#REF! ->  | AO8: =#REF! ->  | AP8: =#REF! ->  | AQ8: =#REF!+#REF! ->  | AR8: =#REF! ->  | AS8: =#REF! ->  | AT8: =#REF! ->  | AU8: =AX7/0.8*0.2 ->  | AV8: =#REF! ->  | AW8: =#REF! ->  | AX8: =#REF! ->  | AY8: =#REF! ->  | AZ8: =nerr((AX8+AY8)/(BC8-AH8-AU8-AX8-AY8-AM8)) ->  | BA8: =AH8+AK8+AL8+AN8+AS8+AT8+AV8+AR8+AW8+AX8+AY8 ->  | BB8: =#REF! ->  | BC8: =SUM(BA8,BB8,AG8) ->  | BF8: =nerr((BD8+BE8)/BC8) ->  | BG8: =nerr((BC8-BC7)/BC7) ->  | BH8: ='Баланс энергии'!R8 -> 138485.902 | BI8: ='Баланс энергии'!R18 -> 16082.80142 | BK8: 0.1161331311 | BL8: 0 | BN8: 0 | BO8: =nerr((BL8-BL7)/BL7) ->  | BP8: ='Баланс мощности'!H9 -> 0 | BQ8: =#REF! ->  | BR8: =#REF! ->  | BS8: =#REF! -> 
B9: 2022 | D9: =D8 ->  | J9: =IF(E8=0,0,(E9-E8)/E8*K9) ->  | K9: 0.75 | L9: =(1+C9)*(1-D9)*(1+J9) ->  | N9: =N8*$L9 ->  | O9: =O8*L9 ->  | P9: =P8*$L9 ->  | R9: =R8*$L9 ->  | T9: =T8*$L9 ->  | U9: =U8*L9 ->  | V9: =V8*L9 ->  | W9: =W8*$L9 ->  | AH9: 0 | AN9: 0 | AZ9: =nerr((AX9+AY9)/(BC9-AH9-AU9-AX9-AY9-AM9)) ->  | BA9: 0 | BF9: =nerr((BD9+BE9)/BC9) ->  | BG9: =nerr((BC9-BC8)/BC8) ->  | BK9: 0 | BL9: 0 | BN9: 0 | BO9: =nerr((BL9-BL8)/BL8) -> 
B10: 2023 | J10: =IF(E9=0,0,(E10-E9)/E9*K10) -> 0 | K10: 0.75 | L10: =(1+C10)*(1-D10)*(1+J10) ->  | AH10: 0 | AN10: 0 | AZ10: =nerr((AX10+AY10)/(BC10-AH10-AU10-AX10-AY10-AM10)) ->  | BA10: 0 | BF10: =nerr((BD10+BE10)/BC10) ->  | BG10: =nerr((BC10-BC9)/BC9) ->  | BK10: 0 | BL10: 0 | BN10: 0 | BO10: =nerr((BL10-BL9)/BL9) -> 
B11: 2024 | J11: =IF(E10=0,0,(E11-E10)/E10*K11) -> 0 | K11: 0.75 | L11: =(1+C11)*(1-D11)*(1+J11) ->  | M11: =SUM(N11:O11) ->  | AH11: 0 | AN11: 0 | AZ11: =((AX11+AY11)/(BC11-AH11-AU11-AX11-AY11-AM11)) ->  | BA11: 0 | BF11: =((BD11+BE11)/BC11) ->  | BG11: =nerr((BC11-BC10)/BC10) ->  | BK11: 0 | BL11: 0 | BN11: 0 | BO11: =nerr((BL11-BL10)/BL10) -> 

Sheet Заявитель1 (hidden)
C1: Приложение 2 к Методическим указаниям, утвержденным приказом ФСТ от 11.09.2014 г. №215-э/1
A3: Расчет размера расходов, связанных с предоставлением беспроцентной рассрочки (для конкретного заявителя)
B5: (Контрагент (наименование), № договора ТП, Дата заключения договора)
A7: N п/п | B7: Квартал, на который рассчитывается размер расходов, связанных с предоставлением беспроцентной рассрочки | C7: Расходы, связанные с предоставлением беспроцентной рассрочки, тыс. руб. (с учетом НДС) | H7: Номер квартала i
C8: в отношении суммарного размера платы за технологическое присоединение в 1 квартале | D8: в отношении суммарного размера платы за технологическое присоединение во 2 квартале | E8: в отношении суммарного размера платы за технологическое присоединение в 3 квартале | F8: в отношении суммарного размера платы за технологическое присоединение в 4 квартале | G8: всего в год
A9: 1 | B9: =CONCATENATE("1 год (",$B$34,"г.):") -> 1 год (г.): | C9: =SUM(C10:C13) -> 0 | D9: =SUM(D10:D13) -> 0 | E9: =SUM(E10:E13) -> 0 | F9: =SUM(F10:F13) -> 0 | G9: =SUM(C9:F9) -> 0
A10: 1.1. | B10: 1 квартал | C10: =IF($H10>=$B$32,Заявитель1!$B$33*0.95*((12+$B$32-$H10)/12)*($B$31/4),0) -> 0 | G10: 0 | H10: 1
A11: 1.2. | B11: 2 квартал | D11: =IF($H11>=$B$32,Заявитель1!$B$33*0.95*((12+$B$32-$H11)/12)*($B$31/4),0) -> 0 | G11: 0 | H11: 2
A12: 1.3. | B12: 3 квартал | E12: =IF($H12>=$B$32,Заявитель1!$B$33*0.95*((12+$B$32-$H12)/12)*($B$31/4),0) -> 0 | G12: 0 | H12: 3
A13: 1.4. | B13: 4 квартал | F13: =IF($H13>=$B$32,Заявитель1!$B$33*0.95*((12+$B$32-$H13)/12)*($B$31/4),0) -> 0 | G13: 0 | H13: 4
A14: 2 | B14: =CONCATENATE("1 год (",$B$34+1,"г.):") -> 1 год (1г.): | C14: =SUM(C15:C18) -> 0 | D14: =SUM(D15:D18) -> 0 | E14: =SUM(E15:E18) -> 0 | F14: =SUM(F15:F18) -> 0 | G14: 0
A15: 2.1. | B15: 5 квартал | C15: =Заявитель1!$B$33*0.95*((12+$B$32-$H15)/12)*($B$31/4) -> 0 | G15: 0 | H15: 5
A16: 2.2. | B16: 6 квартал | D16: =Заявитель1!$B$33*0.95*((12+$B$32-$H16)/12)*($B$31/4) -> 0 | G16: 0 | H16: 6
A17: 2.3. | B17: 7 квартал | E17: =Заявитель1!$B$33*0.95*((12+$B$32-$H17)/12)*($B$31/4) -> 0 | G17: 0 | H17: 7
A18: 2.4. | B18: 8 квартал | F18: =Заявитель1!$B$33*0.95*((12+$B$32-$H18)/12)*($B$31/4) -> 0 | G18: 0 | H18: 8
A19: 3 | B19: =CONCATENATE("1 год (",$B$34+2,"г.):") -> 1 год (2г.): | C19: =SUM(C20:C23) -> 0 | D19: =SUM(D20:D23) -> 0 | E19: =SUM(E20:E23) -> 0 | F19: =SUM(F20:F23) -> 0 | G19: 0
A20: 3.1. | B20: 9 квартал | C20: =Заявитель1!$B$33*0.95*((12+$B$32-$H20)/12)*($B$31/4) -> 0 | G20: 0 | H20: 9
A21: 3.2. | B21: 10 квартал | D21: =Заявитель1!$B$33*0.95*((12+$B$32-$H21)/12)*($B$31/4) -> 0 | G21: 0 | H21: 10
A22: 3.3. | B22: 11 квартал | E22: =Заявитель1!$B$33*0.95*((12+$B$32-$H22)/12)*($B$31/4) -> 0 | G22: 0 | H22: 11
A23: 3.4. | B23: 12 квартал | F23: =Заявитель1!$B$33*0.95*((12+$B$32-$H23)/12)*($B$31/4) -> 0 | G23: 0 | H23: 12
A24: 4 | B24: =CONCATENATE("1 год (",$B$34+3,"г.):") -> 1 год (3г.): | C24: =SUM(C25:C27) -> 0 | D24: =SUM(D25:D27) -> 0 | E24: =SUM(E25:E27) -> 0 | F24: =SUM(F25:F27) -> 0 | G24: 0
A25: 4.1. | B25: 13 квартал | C25: =Заявитель1!$B$33*0.95*((12+$B$32-$H25)/12)*($B$31/4) -> 0 | G25: 0 | H25: 13
A26: 4.2. | B26: 14 квартал | D26: =IF((Заявитель1!$B$33*0.95*((12+$B$32-$H26)/12)*($B$31/4))<0,0,Заявитель1!$B$33*0.95*((12+$B$32-$H26)/12)*($B$31/4)) -> 0 | G26: 0 | H26: 14
A27: 4.3. | B27: 15 квартал | E27: =IF((Заявитель1!$B$33*0.95*((12+$B$32-$H27)/12)*($B$31/4))<0,0,Заявитель1!$B$33*0.95*((12+$B$32-$H27)/12)*($B$31/4)) -> 0 | G27: 0 | H27: 15
A28: 5 | B28: Итого | C28: =C9+C14+C19+C24 -> 0 | D28: =D9+D14+D19+D24 -> 0 | E28: =E9+E14+E19+E24 -> 0 | F28: =F9+F14+F19+F24 -> 0 | G28: =G9+G14+G19+G24 -> 0
A32: k
A34: Год закрытия договора
A36: Размера расходов, связанных с предоставлением беспроцентной рассрочки в 2021 году | G36: =IF(B34<2018,0,IF(B34=2018,G24,IF(B34=2019,G19,IF(B34=2020,G14)))) -> 0 | H36: тыс. руб.
A38: Размер расходов, связанных с предоставлением беспроцентной рассрочки, в i-м квартале в течение трехлетнего периода предоставления беспроцентной рассрочки рассчитывается по формуле (1):
D40: , (1)
A42: где:
A43: - суммарный размер платы за технологическое присоединение, начисляемый заявителям, которым предоставляется рассрочка, в квартале k периода регулирования (тыс. руб.);
A44: k - номер квартала по порядку в периоде регулирования, в который начисляется размер платы за технологическое присоединение (равен от 1 до 4);
A45: i - номер квартала по порядку, начиная с момента начисления размера платы за технологическое присоединение с условием предоставления беспроцентной рассрочки в квартале k, с учетом квартала, в котором произведены начисления, в течение трехлетнего периода предоставления беспроцентной рассрочки (равен от k до 12 + k - 1);
A46: - ставка рефинансирования Центрального банка Российской Федерации на дату представления сетевой организацией заявки на установление размера платы за технологическое присоединение в регулирующий орган.
A47: В случае отклонения фактического значения процентной ставки по кредитам, связанным с рассрочкой по оплате технологического присоединения, от ставки рефинансирования Центрального банка Российской Федерации, при расчете фактического размера расходов, связанных с предоставлением беспроцентной рассрочки, применяется величина процентной ставки в соответствии с пунктом 87 Основ ценообразования.
A49: Примечание:
A50: 1) Периодом предоставления беспроцентной рассрочки считается 3 года.
A51: 2) Размер расходов, связанных с предоставлением беспроцентной рассрочки, в каждый квартал периода регулирования в течение трехлетнего периода предоставления беспроцентной рассрочки в отношении планируемого к получению (фактически полученного) от заявителей суммарного размера платы за технологическое присоединение, определяется в соответствии с формулой (1) Методических указаний по определению выпадающих доходов, связанных с осуществлением технологического присоединения к электрическим сетям.
A52: 3) При расчете планируемых значений показателей при заполнении таблиц 1 и 2 применяется планируемая к получению величина суммарного размера платы за технологическое присоединение, подлежащего беспроцентной рассрочке.
A53: 4) При расчете фактических значений показателей при заполнении таблиц 1 и 2 применяется суммарная плата за технологическое присоединение, начисленная с беспроцентной рассрочкой в соответствии с заключенными договорами об осуществлении технологического присоединения к электрическим сетям.

Sheet Заявитель2 (hidden)
C1: Приложение 2 к Методическим указаниям, утвержденным приказом ФСТ от 11.09.2014 г. №215-э/1
A3: Расчет размера расходов, связанных с предоставлением беспроцентной рассрочки (для конкретного заявителя)
B5: (Контрагент (наименование), № договора ТП, Дата заключения договора)
A7: N п/п | B7: Квартал, на который рассчитывается размер расходов, связанных с предоставлением беспроцентной рассрочки | C7: Расходы, связанные с предоставлением беспроцентной рассрочки, тыс. руб. (с учетом НДС) | H7: Номер квартала i
C8: в отношении суммарного размера платы за технологическое присоединение в 1 квартале | D8: в отношении суммарного размера платы за технологическое присоединение во 2 квартале | E8: в отношении суммарного размера платы за технологическое присоединение в 3 квартале | F8: в отношении суммарного размера платы за технологическое присоединение в 4 квартале | G8: всего в год
A9: 1 | B9: =CONCATENATE("1 год (",$B$34,"г.):") -> 1 год (г.): | C9: =SUM(C10:C13) -> 0 | D9: =SUM(D10:D13) -> 0 | E9: =SUM(E10:E13) -> 0 | F9: =SUM(F10:F13) -> 0 | G9: =SUM(C9:F9) -> 0
A10: 1.1. | B10: 1 квартал | C10: =IF($H10>=$B$32,Заявитель2!$B$33*0.95*((12+$B$32-$H10)/12)*($B$31/4),0) -> 0 | G10: 0 | H10: 1
A11: 1.2. | B11: 2 квартал | D11: =IF($H11>=$B$32,Заявитель2!$B$33*0.95*((12+$B$32-$H11)/12)*($B$31/4),0) -> 0 | G11: 0 | H11: 2
A12: 1.3. | B12: 3 квартал | E12: =IF($H12>=$B$32,Заявитель2!$B$33*0.95*((12+$B$32-$H12)/12)*($B$31/4),0) -> 0 | G12: 0 | H12: 3
A13: 1.4. | B13: 4 квартал | F13: =IF($H13>=$B$32,Заявитель2!$B$33*0.95*((12+$B$32-$H13)/12)*($B$31/4),0) -> 0 | G13: 0 | H13: 4
A14: 2 | B14: =CONCATENATE("1 год (",$B$34+1,"г.):") -> 1 год (1г.): | C14: =SUM(C15:C18) -> 0 | D14: =SUM(D15:D18) -> 0 | E14: =SUM(E15:E18) -> 0 | F14: =SUM(F15:F18) -> 0 | G14: 0
A15: 2.1. | B15: 5 квартал | C15: =Заявитель2!$B$33*0.95*((12+$B$32-$H15)/12)*($B$31/4) -> 0 | G15: 0 | H15: 5
A16: 2.2. | B16: 6 квартал | D16: =Заявитель2!$B$33*0.95*((12+$B$32-$H16)/12)*($B$31/4) -> 0 | G16: 0 | H16: 6
A17: 2.3. | B17: 7 квартал | E17: =Заявитель2!$B$33*0.95*((12+$B$32-$H17)/12)*($B$31/4) -> 0 | G17: 0 | H17: 7
A18: 2.4. | B18: 8 квартал | F18: =Заявитель2!$B$33*0.95*((12+$B$32-$H18)/12)*($B$31/4) -> 0 | G18: 0 | H18: 8
A19: 3 | B19: =CONCATENATE("1 год (",$B$34+2,"г.):") -> 1 год (2г.): | C19: =SUM(C20:C23) -> 0 | D19: =SUM(D20:D23) -> 0 | E19: =SUM(E20:E23) -> 0 | F19: =SUM(F20:F23) -> 0 | G19: 0
A20: 3.1. | B20: 9 квартал | C20: =Заявитель2!$B$33*0.95*((12+$B$32-$H20)/12)*($B$31/4) -> 0 | G20: 0 | H20: 9
A21: 3.2. | B21: 10 квартал | D21: =Заявитель2!$B$33*0.95*((12+$B$32-$H21)/12)*($B$31/4) -> 0 | G21: 0 | H21: 10
A22: 3.3. | B22: 11 квартал | E22: =Заявитель2!$B$33*0.95*((12+$B$32-$H22)/12)*($B$31/4) -> 0 | G22: 0 | H22: 11
A23: 3.4. | B23: 12 квартал | F23: =Заявитель2!$B$33*0.95*((12+$B$32-$H23)/12)*($B$31/4) -> 0 | G23: 0 | H23: 12
A24: 4 | B24: =CONCATENATE("1 год (",$B$34+3,"г.):") -> 1 год (3г.): | C24: =SUM(C25:C27) -> 0 | D24: =SUM(D25:D27) -> 0 | E24: =SUM(E25:E27) -> 0 | F24: =SUM(F25:F27) -> 0 | G24: 0
A25: 4.1. | B25: 13 квартал | C25: =Заявитель2!$B$33*0.95*((12+$B$32-$H25)/12)*($B$31/4) -> 0 | G25: 0 | H25: 13
A26: 4.2. | B26: 14 квартал | D26: =IF((Заявитель2!$B$33*0.95*((12+$B$32-$H26)/12)*($B$31/4))<0,0,Заявитель2!$B$33*0.95*((12+$B$32-$H26)/12)*($B$31/4)) -> 0 | G26: 0 | H26: 14
A27: 4.3. | B27: 15 квартал | E27: =IF((Заявитель2!$B$33*0.95*((12+$B$32-$H27)/12)*($B$31/4))<0,0,Заявитель2!$B$33*0.95*((12+$B$32-$H27)/12)*($B$31/4)) -> 0 | G27: 0 | H27: 15
A28: 5 | B28: Итого | C28: =C9+C14+C19+C24 -> 0 | D28: =D9+D14+D19+D24 -> 0 | E28: =E9+E14+E19+E24 -> 0 | F28: =F9+F14+F19+F24 -> 0 | G28: =G9+G14+G19+G24 -> 0
A32: k
A34: Год закрытия договора
A36: Размера расходов, связанных с предоставлением беспроцентной рассрочки в 2021 году | G36: =IF(B34<2018,0,IF(B34=2018,G24,IF(B34=2019,G19,IF(B34=2020,G14)))) -> 0 | H36: тыс. руб.
A38: Размер расходов, связанных с предоставлением беспроцентной рассрочки, в i-м квартале в течение трехлетнего периода предоставления беспроцентной рассрочки рассчитывается по формуле (1):
D40: , (1)
A42: где:
A43: - суммарный размер платы за технологическое присоединение, начисляемый заявителям, которым предоставляется рассрочка, в квартале k периода регулирования (тыс. руб.);
A44: k - номер квартала по порядку в периоде регулирования, в который начисляется размер платы за технологическое присоединение (равен от 1 до 4);
A45: i - номер квартала по порядку, начиная с момента начисления размера платы за технологическое присоединение с условием предоставления беспроцентной рассрочки в квартале k, с учетом квартала, в котором произведены начисления, в течение трехлетнего периода предоставления беспроцентной рассрочки (равен от k до 12 + k - 1);
A46: - ставка рефинансирования Центрального банка Российской Федерации на дату представления сетевой организацией заявки на установление размера платы за технологическое присоединение в регулирующий орган.
A47: В случае отклонения фактического значения процентной ставки по кредитам, связанным с рассрочкой по оплате технологического присоединения, от ставки рефинансирования Центрального банка Российской Федерации, при расчете фактического размера расходов, связанных с предоставлением беспроцентной рассрочки, применяется величина процентной ставки в соответствии с пунктом 87 Основ ценообразования.
A49: Примечание:
A50: 1) Периодом предоставления беспроцентной рассрочки считается 3 года.
A51: 2) Размер расходов, связанных с предоставлением беспроцентной рассрочки, в каждый квартал периода регулирования в течение трехлетнего периода предоставления беспроцентной рассрочки в отношении планируемого к получению (фактически полученного) от заявителей суммарного размера платы за технологическое присоединение, определяется в соответствии с формулой (1) Методических указаний по определению выпадающих доходов, связанных с осуществлением технологического присоединения к электрическим сетям.
A52: 3) При расчете планируемых значений показателей при заполнении таблиц 1 и 2 применяется планируемая к получению величина суммарного размера платы за технологическое присоединение, подлежащего беспроцентной рассрочке.
A53: 4) При расчете фактических значений показателей при заполнении таблиц 1 и 2 применяется суммарная плата за технологическое присоединение, начисленная с беспроцентной рассрочкой в соответствии с заключенными договорами об осуществлении технологического присоединения к электрическим сетям.

Sheet Заявитель3 (hidden)
C1: Приложение 2 к Методическим указаниям, утвержденным приказом ФСТ от 11.09.2014 г. №215-э/1
A3: Расчет размера расходов, связанных с предоставлением беспроцентной рассрочки (для конкретного заявителя)
B5: (Контрагент (наименование), № договора ТП, Дата заключения договора)
A7: N п/п | B7: Квартал, на который рассчитывается размер расходов, связанных с предоставлением беспроцентной рассрочки | C7: Расходы, связанные с предоставлением беспроцентной рассрочки, тыс. руб. (с учетом НДС) | H7: Номер квартала i
C8: в отношении суммарного размера платы за технологическое присоединение в 1 квартале | D8: в отношении суммарного размера платы за технологическое присоединение во 2 квартале | E8: в отношении суммарного размера платы за технологическое присоединение в 3 квартале | F8: в отношении суммарного размера платы за технологическое присоединение в 4 квартале | G8: всего в год
A9: 1 | B9: =CONCATENATE("1 год (",$B$34,"г.):") -> 1 год (г.): | C9: =SUM(C10:C13) -> 0 | D9: =SUM(D10:D13) -> 0 | E9: =SUM(E10:E13) -> 0 | F9: =SUM(F10:F13) -> 0 | G9: =SUM(C9:F9) -> 0
A10: 1.1. | B10: 1 квартал | C10: =IF($H10>=$B$32,Заявитель3!$B$33*0.95*((12+$B$32-$H10)/12)*($B$31/4),0) -> 0 | G10: 0 | H10: 1
A11: 1.2. | B11: 2 квартал | D11: =IF($H11>=$B$32,Заявитель3!$B$33*0.95*((12+$B$32-$H11)/12)*($B$31/4),0) -> 0 | G11: 0 | H11: 2
A12: 1.3. | B12: 3 квартал | E12: =IF($H12>=$B$32,Заявитель3!$B$33*0.95*((12+$B$32-$H12)/12)*($B$31/4),0) -> 0 | G12: 0 | H12: 3
A13: 1.4. | B13: 4 квартал | F13: =IF($H13>=$B$32,Заявитель3!$B$33*0.95*((12+$B$32-$H13)/12)*($B$31/4),0) -> 0 | G13: 0 | H13: 4
A14: 2 | B14: =CONCATENATE("1 год (",$B$34+1,"г.):") -> 1 год (1г.): | C14: =SUM(C15:C18) -> 0 | D14: =SUM(D15:D18) -> 0 | E14: =SUM(E15:E18) -> 0 | F14: =SUM(F15:F18) -> 0 | G14: 0
A15: 2.1. | B15: 5 квартал | C15: =Заявитель3!$B$33*0.95*((12+$B$32-$H15)/12)*($B$31/4) -> 0 | G15: 0 | H15: 5
A16: 2.2. | B16: 6 квартал | D16: =Заявитель3!$B$33*0.95*((12+$B$32-$H16)/12)*($B$31/4) -> 0 | G16: 0 | H16: 6
A17: 2.3. | B17: 7 квартал | E17: =Заявитель3!$B$33*0.95*((12+$B$32-$H17)/12)*($B$31/4) -> 0 | G17: 0 | H17: 7
A18: 2.4. | B18: 8 квартал | F18: =Заявитель3!$B$33*0.95*((12+$B$32-$H18)/12)*($B$31/4) -> 0 | G18: 0 | H18: 8
A19: 3 | B19: =CONCATENATE("1 год (",$B$34+2,"г.):") -> 1 год (2г.): | C19: =SUM(C20:C23) -> 0 | D19: =SUM(D20:D23) -> 0 | E19: =SUM(E20:E23) -> 0 | F19: =SUM(F20:F23) -> 0 | G19: 0
A20: 3.1. | B20: 9 квартал | C20: =Заявитель3!$B$33*0.95*((12+$B$32-$H20)/12)*($B$31/4) -> 0 | G20: 0 | H20: 9
A21: 3.2. | B21: 10 квартал | D21: =Заявитель3!$B$33*0.95*((12+$B$32-$H21)/12)*($B$31/4) -> 0 | G21: 0 | H21: 10
A22: 3.3. | B22: 11 квартал | E22: =Заявитель3!$B$33*0.95*((12+$B$32-$H22)/12)*($B$31/4) -> 0 | G22: 0 | H22: 11
A23: 3.4. | B23: 12 квартал | F23: =Заявитель3!$B$33*0.95*((12+$B$32-$H23)/12)*($B$31/4) -> 0 | G23: 0 | H23: 12
A24: 4 | B24: =CONCATENATE("1 год (",$B$34+3,"г.):") -> 1 год (3г.): | C24: =SUM(C25:C27) -> 0 | D24: =SUM(D25:D27) -> 0 | E24: =SUM(E25:E27) -> 0 | F24: =SUM(F25:F27) -> 0 | G24: 0
A25: 4.1. | B25: 13 квартал | C25: =Заявитель3!$B$33*0.95*((12+$B$32-$H25)/12)*($B$31/4) -> 0 | G25: 0 | H25: 13
A26: 4.2. | B26: 14 квартал | D26: =IF((Заявитель3!$B$33*0.95*((12+$B$32-$H26)/12)*($B$31/4))<0,0,Заявитель3!$B$33*0.95*((12+$B$32-$H26)/12)*($B$31/4)) -> 0 | G26: 0 | H26: 14
A27: 4.3. | B27: 15 квартал | E27: =IF((Заявитель3!$B$33*0.95*((12+$B$32-$H27)/12)*($B$31/4))<0,0,Заявитель3!$B$33*0.95*((12+$B$32-$H27)/12)*($B$31/4)) -> 0 | G27: 0 | H27: 15
A28: 5 | B28: Итого | C28: =C9+C14+C19+C24 -> 0 | D28: =D9+D14+D19+D24 -> 0 | E28: =E9+E14+E19+E24 -> 0 | F28: =F9+F14+F19+F24 -> 0 | G28: =G9+G14+G19+G24 -> 0
A32: k
A34: Год закрытия договора
A36: Размера расходов, связанных с предоставлением беспроцентной рассрочки в 2021 году | G36: =IF(B34<2018,0,IF(B34=2018,G24,IF(B34=2019,G19,IF(B34=2020,G14)))) -> 0 | H36: тыс. руб.
A38: Размер расходов, связанных с предоставлением беспроцентной рассрочки, в i-м квартале в течение трехлетнего периода предоставления беспроцентной рассрочки рассчитывается по формуле (1):
D40: , (1)
A42: где:
A43: - суммарный размер платы за технологическое присоединение, начисляемый заявителям, которым предоставляется рассрочка, в квартале k периода регулирования (тыс. руб.);
A44: k - номер квартала по порядку в периоде регулирования, в который начисляется размер платы за технологическое присоединение (равен от 1 до 4);
A45: i - номер квартала по порядку, начиная с момента начисления размера платы за технологическое присоединение с условием предоставления беспроцентной рассрочки в квартале k, с учетом квартала, в котором произведены начисления, в течение трехлетнего периода предоставления беспроцентной рассрочки (равен от k до 12 + k - 1);
A46: - ставка рефинансирования Центрального банка Российской Федерации на дату представления сетевой организацией заявки на установление размера платы за технологическое присоединение в регулирующий орган.
A47: В случае отклонения фактического значения процентной ставки по кредитам, связанным с рассрочкой по оплате технологического присоединения, от ставки рефинансирования Центрального банка Российской Федерации, при расчете фактического размера расходов, связанных с предоставлением беспроцентной рассрочки, применяется величина процентной ставки в соответствии с пунктом 87 Основ ценообразования.
A49: Примечание:
A50: 1) Периодом предоставления беспроцентной рассрочки считается 3 года.
A51: 2) Размер расходов, связанных с предоставлением беспроцентной рассрочки, в каждый квартал периода регулирования в течение трехлетнего периода предоставления беспроцентной рассрочки в отношении планируемого к получению (фактически полученного) от заявителей суммарного размера платы за технологическое присоединение, определяется в соответствии с формулой (1) Методических указаний по определению выпадающих доходов, связанных с осуществлением технологического присоединения к электрическим сетям.
A52: 3) При расчете планируемых значений показателей при заполнении таблиц 1 и 2 применяется планируемая к получению величина суммарного размера платы за технологическое присоединение, подлежащего беспроцентной рассрочке.
A53: 4) При расчете фактических значений показателей при заполнении таблиц 1 и 2 применяется суммарная плата за технологическое присоединение, начисленная с беспроцентной рассрочкой в соответствии с заключенными договорами об осуществлении технологического присоединения к электрическим сетям.

Sheet Заявитель4 (hidden)
C1: Приложение 2 к Методическим указаниям, утвержденным приказом ФСТ от 11.09.2014 г. №215-э/1
A3: Расчет размера расходов, связанных с предоставлением беспроцентной рассрочки (для конкретного заявителя)
B5: (Контрагент (наименование), № договора ТП, Дата заключения договора)
A7: N п/п | B7: Квартал, на который рассчитывается размер расходов, связанных с предоставлением беспроцентной рассрочки | C7: Расходы, связанные с предоставлением беспроцентной рассрочки, тыс. руб. (с учетом НДС) | H7: Номер квартала i
C8: в отношении суммарного размера платы за технологическое присоединение в 1 квартале | D8: в отношении суммарного размера платы за технологическое присоединение во 2 квартале | E8: в отношении суммарного размера платы за технологическое присоединение в 3 квартале | F8: в отношении суммарного размера платы за технологическое присоединение в 4 квартале | G8: всего в год
A9: 1 | B9: =CONCATENATE("1 год (",$B$34,"г.):") -> 1 год (г.): | C9: =SUM(C10:C13) -> 0 | D9: =SUM(D10:D13) -> 0 | E9: =SUM(E10:E13) -> 0 | F9: =SUM(F10:F13) -> 0 | G9: =SUM(C9:F9) -> 0
A10: 1.1. | B10: 1 квартал | C10: =IF($H10>=$B$32,Заявитель4!$B$33*0.95*((12+$B$32-$H10)/12)*($B$31/4),0) -> 0 | G10: 0 | H10: 1
A11: 1.2. | B11: 2 квартал | D11: =IF($H11>=$B$32,Заявитель4!$B$33*0.95*((12+$B$32-$H11)/12)*($B$31/4),0) -> 0 | G11: 0 | H11: 2
A12: 1.3. | B12: 3 квартал | E12: =IF($H12>=$B$32,Заявитель4!$B$33*0.95*((12+$B$32-$H12)/12)*($B$31/4),0) -> 0 | G12: 0 | H12: 3
A13: 1.4. | B13: 4 квартал | F13: =IF($H13>=$B$32,Заявитель4!$B$33*0.95*((12+$B$32-$H13)/12)*($B$31/4),0) -> 0 | G13: 0 | H13: 4
A14: 2 | B14: =CONCATENATE("1 год (",$B$34+1,"г.):") -> 1 год (1г.): | C14: =SUM(C15:C18) -> 0 | D14: =SUM(D15:D18) -> 0 | E14: =SUM(E15:E18) -> 0 | F14: =SUM(F15:F18) -> 0 | G14: 0
A15: 2.1. | B15: 5 квартал | C15: =Заявитель4!$B$33*0.95*((12+$B$32-$H15)/12)*($B$31/4) -> 0 | G15: 0 | H15: 5
A16: 2.2. | B16: 6 квартал | D16: =Заявитель4!$B$33*0.95*((12+$B$32-$H16)/12)*($B$31/4) -> 0 | G16: 0 | H16: 6
A17: 2.3. | B17: 7 квартал | E17: =Заявитель4!$B$33*0.95*((12+$B$32-$H17)/12)*($B$31/4) -> 0 | G17: 0 | H17: 7
A18: 2.4. | B18: 8 квартал | F18: =Заявитель4!$B$33*0.95*((12+$B$32-$H18)/12)*($B$31/4) -> 0 | G18: 0 | H18: 8
A19: 3 | B19: =CONCATENATE("1 год (",$B$34+2,"г.):") -> 1 год (2г.): | C19: =SUM(C20:C23) -> 0 | D19: =SUM(D20:D23) -> 0 | E19: =SUM(E20:E23) -> 0 | F19: =SUM(F20:F23) -> 0 | G19: 0
A20: 3.1. | B20: 9 квартал | C20: =Заявитель4!$B$33*0.95*((12+$B$32-$H20)/12)*($B$31/4) -> 0 | G20: 0 | H20: 9
A21: 3.2. | B21: 10 квартал | D21: =Заявитель4!$B$33*0.95*((12+$B$32-$H21)/12)*($B$31/4) -> 0 | G21: 0 | H21: 10
A22: 3.3. | B22: 11 квартал | E22: =Заявитель4!$B$33*0.95*((12+$B$32-$H22)/12)*($B$31/4) -> 0 | G22: 0 | H22: 11
A23: 3.4. | B23: 12 квартал | F23: =Заявитель4!$B$33*0.95*((12+$B$32-$H23)/12)*($B$31/4) -> 0 | G23: 0 | H23: 12
A24: 4 | B24: =CONCATENATE("1 год (",$B$34+3,"г.):") -> 1 год (3г.): | C24: =SUM(C25:C27) -> 0 | D24: =SUM(D25:D27) -> 0 | E24: =SUM(E25:E27) -> 0 | F24: =SUM(F25:F27) -> 0 | G24: 0
A25: 4.1. | B25: 13 квартал | C25: =Заявитель4!$B$33*0.95*((12+$B$32-$H25)/12)*($B$31/4) -> 0 | G25: 0 | H25: 13
A26: 4.2. | B26: 14 квартал | D26: =IF((Заявитель4!$B$33*0.95*((12+$B$32-$H26)/12)*($B$31/4))<0,0,Заявитель4!$B$33*0.95*((12+$B$32-$H26)/12)*($B$31/4)) -> 0 | G26: 0 | H26: 14
A27: 4.3. | B27: 15 квартал | E27: =IF((Заявитель4!$B$33*0.95*((12+$B$32-$H27)/12)*($B$31/4))<0,0,Заявитель4!$B$33*0.95*((12+$B$32-$H27)/12)*($B$31/4)) -> 0 | G27: 0 | H27: 15
A28: 5 | B28: Итого | C28: =C9+C14+C19+C24 -> 0 | D28: =D9+D14+D19+D24 -> 0 | E28: =E9+E14+E19+E24 -> 0 | F28: =F9+F14+F19+F24 -> 0 | G28: =G9+G14+G19+G24 -> 0
A32: k
A34: Год закрытия договора
A36: Размера расходов, связанных с предоставлением беспроцентной рассрочки в 2021 году | G36: =IF(B34<2018,0,IF(B34=2018,G24,IF(B34=2019,G19,IF(B34=2020,G14)))) -> 0 | H36: тыс. руб.
A38: Размер расходов, связанных с предоставлением беспроцентной рассрочки, в i-м квартале в течение трехлетнего периода предоставления беспроцентной рассрочки рассчитывается по формуле (1):
D40: , (1)
A42: где:
A43: - суммарный размер платы за технологическое присоединение, начисляемый заявителям, которым предоставляется рассрочка, в квартале k периода регулирования (тыс. руб.);
A44: k - номер квартала по порядку в периоде регулирования, в который начисляется размер платы за технологическое присоединение (равен от 1 до 4);
A45: i - номер квартала по порядку, начиная с момента начисления размера платы за технологическое присоединение с условием предоставления беспроцентной рассрочки в квартале k, с учетом квартала, в котором произведены начисления, в течение трехлетнего периода предоставления беспроцентной рассрочки (равен от k до 12 + k - 1);
A46: - ставка рефинансирования Центрального банка Российской Федерации на дату представления сетевой организацией заявки на установление размера платы за технологическое присоединение в регулирующий орган.
A47: В случае отклонения фактического значения процентной ставки по кредитам, связанным с рассрочкой по оплате технологического присоединения, от ставки рефинансирования Центрального банка Российской Федерации, при расчете фактического размера расходов, связанных с предоставлением беспроцентной рассрочки, применяется величина процентной ставки в соответствии с пунктом 87 Основ ценообразования.
A49: Примечание:
A50: 1) Периодом предоставления беспроцентной рассрочки считается 3 года.
A51: 2) Размер расходов, связанных с предоставлением беспроцентной рассрочки, в каждый квартал периода регулирования в течение трехлетнего периода предоставления беспроцентной рассрочки в отношении планируемого к получению (фактически полученного) от заявителей суммарного размера платы за технологическое присоединение, определяется в соответствии с формулой (1) Методических указаний по определению выпадающих доходов, связанных с осуществлением технологического присоединения к электрическим сетям.
A52: 3) При расчете планируемых значений показателей при заполнении таблиц 1 и 2 применяется планируемая к получению величина суммарного размера платы за технологическое присоединение, подлежащего беспроцентной рассрочке.
A53: 4) При расчете фактических значений показателей при заполнении таблиц 1 и 2 применяется суммарная плата за технологическое присоединение, начисленная с беспроцентной рассрочкой в соответствии с заключенными договорами об осуществлении технологического присоединения к электрическим сетям.

Sheet TEHSHEET (hidden)
E7: Январь
E8: Февраль
E9: Март
E10: Апрель
E11: Май
E12: Июнь
E13: Июль
E14: Август
E15: Сентябрь
E16: Октябрь
E17: Ноябрь
E18: Декабрь
